Cogmind - Beta 15 @@@ ROGUE MODE // 2025.06.29 @ 00:42:53 Player: JackNine Result: Destroyed by Executioner with Helical Railgun Performance ------------- Evolutions (8) 4000 Regions Visited (32) 6400 Robots Destroyed (541) 2705 Value Destroyed (30097) 30097 Prototype IDs (104) 2080 Alien Tech Used (5) 1000 Bonus (13102) 13102 TOTAL SCORE: 59384 Bonus ------- High Alert Combat Kills 6085 Follower Combat Kills 1641 Forged Quantum Companion 2000 Network Hubs Disabled 800 Registered with UFD 300 Met Optimus in HQ 500 Met Data Miner 300 Met Zhirov 300 Built Enhanced Grunts 300 A7 Reached Mainframe 300 Met Optimus at Protoforge 1000 Friendly Fire -424 Cogmind --------- Core Integrity 0/1450 Matter 290/300 Energy 440/440 System Corruption 24% Temperature Cool (0) Movement Treading (160) Ox1 Location -2/Protoforge Parts ------- > --- POWER (3) -------- Quantum Reactor Light Quantum Reactor > --- PROPULSION (5) --- Overtuned Medium Treads Overtuned Medium Treads Overtuned Medium Treads High-density Centrium Wheel > --- UTILITY (11) ----- 0bPrime Scrap Suit Huge Storage Unit Spectral Analyzer Advanced Melee Analysis Suite Advanced Melee Analysis Suite Concept Weapon Articulator Makeshift Medium Armor Plating Makeshift Medium Armor Plating > --- WEAPON (4) ------- Superquantum Companion > --- INVENTORY (25) --- 2N-1CE's Frost Array Advanced Thermal Shield Experimental EM Disruption Field Concept Antimissile System Improved Potential Cannon Gamma Bomb Array Botcube UFD Drillbomb Peak State ------------ > --- POWER ------------ Light Antimatter Reactor Improved Quantum Reactor Improved Quantum Reactor > --- PROPULSION ------- Centrium Heavy Treads High-density Centrium Wheel High-density Centrium Wheel High-density Centrium Wheel > --- UTILITY ---------- 2N-1CE's Frost Array Huge Storage Unit Spectral Analyzer Advanced Melee Analysis Suite Advanced Melee Analysis Suite Experimental Weapon Shielding Centrium Heavy Armor Plating Experimental Focal Shield Advanced Thermal Shield Advanced Force Field > --- WEAPON ----------- Improved Potential Cannon Enhanced Hardcell Cannon Superquantum Companion > --- INVENTORY -------- Micro Antimatter Reactor Improved Quantum Reactor High-density Centrium Wheel Experimental Energy Well Concept Weapon Articulator Microactuators Microactuators Experimental EM Disruption Field Concept Antimissile System Transdimensional Reconstructor EMDS Gamma Bomb Array Tactical Quantum Warhead Botcube UFD Drillbomb [Rating: 223] Favorites ----------- Power Quantum Reactor Engine Light Angular Momentum Engine Power Core Light Nuclear Core Reactor Quantum Reactor Propulsion High-density Centrium Wheel Treads Light Treads Leg Advanced Myomer Leg Wheel High-density Centrium Wheel Utility Advanced Melee Analysis Suite Device Advanced Transmission Jammer Storage High-capacity Storage Unit Processor Advanced Melee Analysis Suite Hackware Hacking Suite Protection Centrium Heavy Armor Plating Weapon Quantum Companion Energy Gun Precision Beam Rifle Energy Cannon Cooled Particle Cannon Ballistic Gun Autogun Ballistic Cannon Gauss Cannon Launcher Mini Grenade Launcher Special Weapon Advanced Remote Datajack Impact Weapon Power Maul Slashing Weapon Quantum Companion Build | -11 -10 -10 -9 -9 -9 -8 -8 -8 -8 -8 -6 -6 -6 -6 -6 -6 -5 -5 -5 -5 -5 -4 -4 -4 -4 -4 -4 -3 -3 -2 -2 -2 ------- Run | Yrd Mat Min Mat Min Exi Min Mat Sto Rec Scr Fac Was Fac Low Low Dat Pro Fac Upp Upp Zhi Pro Fac Ext Cet Arc Hub Res Tes Res Qua Frg Slots Evolved 16 | . . . 2 . . . 2 . . . 4 . . . . . . 2 . . . . 2 . . . . 2 . 2 . . Power 2 | . . . . . . . . . . . . . . . . . . . . . . . 1 . . . . . . 1 . . Propulsion 3 | . . . . . . . 1 . . . 1 . . . . . . . . . . . . . . . . . . 1 . . Utility 9 | . . . 1 . . . 1 . . . 3 . . . . . . 2 . . . . 1 . . . . 1 . . . . Weapon 2 | . . . 1 . . . . . . . . . . . . . . . . . . . . . . . . 1 . . . . Parts Attached 378 | 6 9 2 19 2 . 8 10 18 1 16 24 1 9 4 . . 1 32 . 5 6 5 31 23 2 4 17 25 32 26 10 30 Power 52 | 1 1 . 2 . . . 1 1 . 3 2 . 1 . . . . 5 . 1 1 . 5 2 . . 2 3 4 4 4 9 Engine 13 | 1 1 . 1 . . . . . . 2 2 . 1 . . . . 4 . . . . 1 . . . . . . . . . Core 13 | . . . 1 . . . 1 1 . 1 . . . . . . . 1 . 1 . . 3 2 . . . . 2 . . . Reactor 26 | . . . . . . . . . . . . . . . . . . . . . 1 . 1 . . . 2 3 2 4 4 9 Propulsion 83 | 2 2 1 6 . . 1 4 7 . 3 4 1 3 4 . . . 6 . . 4 . 4 7 1 1 3 8 3 2 1 5 Treads 47 | 1 1 1 4 . . . 4 5 . 2 2 . 3 2 . . . 3 . . 1 . 3 4 1 1 . 1 3 1 . 4 Leg 3 | . . . . . . . . . . . . . . . . . . . . . 3 . . . . . . . . . . . Wheel 33 | 1 1 . 2 . . 1 . 2 . 1 2 1 . 2 . . . 3 . . . . 1 3 . . 3 7 . 1 1 1 Hover . | . . . . . . . . . . . . . . . . . . . . . . . . . . . . . . . . . Flight . | . . . . . . . . . . . . . . . . . . . . . . . . . . . . . . . . . Utility 170 | 1 2 . 6 . . 3 3 3 . 7 15 . . . . . 1 17 . . . 5 19 9 1 3 11 10 17 18 3 16 Device 90 | . 1 . 1 . . 1 . 2 . 4 9 . . . . . 1 11 . . . 1 8 4 . 3 7 8 10 11 3 5 Storage 11 | 1 1 . 1 . . . . . . . 1 . . . . . . 1 . . . . 1 . . . . . 3 1 . 1 Processor 24 | . . . 1 . . 1 2 . . 2 4 . . . . . . . . . . . 6 1 . . 1 1 . 5 . . Hackware 1 | . . . . . . . . . . . 1 . . . . . . . . . . . . . . . . . . . . . Protection 44 | . . . 3 . . 1 1 1 . 1 . . . . . . . 5 . . . 4 4 4 1 . 3 1 4 1 . 10 Artifact . | . . . . . . . . . . . . . . . . . . . . . . . . . . . . . . . . . Weapon 73 | 2 4 1 5 2 . 4 2 7 1 3 3 . 5 . . . . 4 . 4 1 . 3 5 . . 1 4 8 2 2 . Energy Gun 15 | 1 2 1 . . . 2 1 5 . . . . . . . . . . . 2 . . . . . . . . 1 . . . Energy Cannon 13 | . . . . . . 1 . . . . 1 . 3 . . . . 1 . . . . . 1 . . 1 2 3 . . . Ballistic Gun 9 | 1 . . 4 . . 1 1 . . 1 . . . . . . . . . . . . . . . . . . . 1 . . Ballistic Cannon 8 | . . . . . . . . . . . 2 . 1 . . . . . . 1 . . 1 . . . . . 2 1 . . Launcher 10 | . 1 . . 2 . . . 2 . . . . 1 . . . . . . 1 . . . . . . . 2 . . 1 . Special Weapon 4 | . . . . . . . . . . 1 . . . . . . . . . . 1 . . . . . . . 2 . . . Impact Weapon 6 | . 1 . . . . . . . 1 . . . . . . . . . . . . . . 4 . . . . . . . . Slashing Weapon 8 | . . . 1 . . . . . . 1 . . . . . . . 3 . . . . 2 . . . . . . . 1 . Piercing Weapon . | . . . . . . . . . . . . . . . . . . . . . . . . . . . . . . . . . Special Melee Weapon . | . . . . . . . . . . . . . . . . . . . . . . . . . . . . . . . . . Unidentified Prototypes 55 | . . . . . . . 1 3 . 1 . . 1 . . . . 3 . . 4 . 1 . 2 . 3 3 16 6 5 6 Corrupted Parts 5 | . . 1 . . . . . . . . . . . . . . . . . . . . . . 1 1 . . . . . 2 System Corruption 26 | . . 13 . . . . . . . . . . . . . . . . . . . . . . 3 6 . . . . . 4 Parts Lost 92 | . 1 . 2 . . 1 2 1 . 7 1 . 6 . . . . 13 . 1 . 3 7 12 . . 4 4 1 1 . 25 Power 17 | . . . . . . . . 1 . 3 . . 1 . . . . 2 . . . . . 2 . . 1 . . . . 7 Propulsion 19 | . 1 . . . . . . . . 2 1 . 3 . . . . 2 . . . . 1 3 . . 1 1 . . . 4 Utility 44 | . . . 1 . . 1 1 . . 2 . . . . . . . 8 . . . 2 6 6 . . 2 3 1 . . 11 Weapon 12 | . . . 1 . . . 1 . . . . . 2 . . . . 1 . 1 . 1 . 1 . . . . . 1 . 3 Highest Loss Streak 9 | . 1 . 1 . . 1 1 1 . 7 1 . 3 . . . . 4 . 1 . 2 3 9 . . 1 2 1 1 . 7 To Critical Strikes 2 | . . . . . . . . . . . . . . . . . . . . . . . . . . . . . . . . 2 Average Backups 16 | 2 8 14 15 19 20 19 19 19 19 17 17 17 16 15 17 18 18 17 15 16 17 17 17 17 18 18 17 16 15 16 19 16 Power . | . 1 1 1 1 1 . 1 . 1 . . 1 1 . . 1 1 . 1 1 1 1 1 1 1 1 . . . . . . Propulsion 2 | 1 2 5 5 5 5 5 4 4 5 4 2 2 1 . 1 2 2 3 3 3 3 3 2 2 2 2 1 1 3 2 1 1 Utility 5 | . . . 1 2 4 3 3 3 3 3 5 9 9 9 9 9 8 7 6 6 6 8 7 4 5 5 5 6 6 7 9 8 Weapon 5 | . 4 8 7 10 10 10 9 10 10 7 7 4 4 5 5 5 5 5 4 4 5 3 5 7 8 8 8 6 4 4 4 3 Tool/Special . | . . . . . . . . . . . . . . . . . . . . . . . . . . . . . . . . . Unused Backups 56 | . 1 . 9 . . 2 2 3 2 2 5 . 1 . . . . 6 . . . . 3 3 4 . 1 3 2 1 3 3 Power 8 | . 1 . 1 . . 1 . . . . 1 . 1 . . . . 2 . . . . 1 . . . . . . . . . Propulsion 10 | . . . 2 . . . . . 1 . . . . . . . . 1 . . . . . . 3 . . 1 . . 2 . Utility 18 | . . . . . . . . 2 . 2 1 . . . . . . 3 . . . . . . 1 . . 2 2 1 1 3 Weapon 18 | . . . 6 . . 1 2 1 1 . 3 . . . . . . . . . . . . 3 . . 1 . . . . . Tool/Special 2 | . . . . . . . . . . . . . . . . . . . . . . . 2 . . . . . . . . . Average Slot Usage (%) 91 | . 94 100 99 100 100 100 99 98 98 98 86 81 84 91 86 74 85 86 94 94 87 94 91 92 95 93 93 94 93 90 90 81 Engine 2 | . 14 14 6 . . . . . . . 6 6 5 5 6 6 6 3 5 2 . . . 4 5 5 . . . . . . Core 2 | . . . 4 11 11 11 8 8 9 8 . . . . . . . 1 . 2 3 . . 4 5 5 2 . 3 1 . . Reactor 4 | . . . . . . . . . . . . . . . . . . . . . 2 5 8 1 . . 7 8 5 10 13 11 Treads 8 | . 14 14 11 11 11 11 18 17 18 9 12 3 15 20 13 13 13 7 11 11 8 5 5 6 6 5 5 4 4 4 4 4 Wheel 9 | . 14 14 11 11 11 11 9 9 9 17 6 11 3 3 6 6 6 8 11 11 6 . 3 9 10 10 10 9 9 13 13 12 Device 17 | . 8 14 11 11 11 7 . 8 18 10 19 20 18 20 20 20 19 25 29 29 28 28 22 22 26 25 22 24 16 13 13 14 Storage 6 | . 14 14 11 11 11 11 9 9 9 9 5 6 6 6 6 6 6 5 5 5 5 5 5 5 5 5 5 4 4 4 4 4 Processor 11 | . . . 1 . . 1 15 9 . 7 8 13 13 13 13 13 13 6 5 5 5 5 13 15 15 15 15 14 19 16 17 13 Protection 6 | . . . 9 11 11 12 11 8 9 8 2 . 1 . . . . 5 5 5 5 5 7 5 5 5 8 6 9 8 7 8 Energy Gun 3 | . 14 24 4 . . 2 . 13 21 23 . . . . . . . . . 2 . 4 . . . . . . . . . . Energy Cannon 3 | . . . . . . 1 . 4 . . . 5 3 13 13 1 12 6 5 2 . . . . . . . . 7 7 3 2 Ballistic Gun 3 | . 7 . 28 22 22 27 26 8 . . . . . . . . . . . . . . . . . . . . . 3 4 . Ballistic Cannon 1 | . . . . . . . . . . . 12 6 8 . . . . . . . . . . . . . . . . . 4 2 Impact Weapon 1 | . 3 3 . . . . . . 3 . . . . . . . . . . . . . . 8 9 9 9 13 2 . . . Slashing Weapon 5 | . . . . . . . . . . 3 6 6 6 6 6 6 6 9 11 11 11 11 13 5 5 5 5 4 4 4 3 4 Peak Build Rating 223 | 6 8 8 20 21 21 24 29 35 34 42 74 74 76 70 71 71 74 106 97 100 118 123 129 117 127 127 133 152 178 205 212 223 Average Rating 104 | 4 6 8 17 20 21 22 27 28 32 33 66 73 69 67 70 61 71 96 95 98 101 119 116 99 121 122 128 138 163 196 201 190 On Entrance 77 | . 6 8 8 20 21 21 22 27 34 26 23 73 73 62 70 71 71 74 95 97 100 118 120 117 106 125 125 129 150 172 200 205 Naked Turns . | . . . . . . . . . . . . . . . . . . . . . . . . . . . . . . . . . Heaviest Build 214 | 14 35 30 62 62 60 64 67 66 62 68 83 76 83 73 73 73 81 89 82 84 85 92 116 116 109 106 111 124 147 214 210 214 Greatest Support 104 | 10 10 10 16 12 12 12 12 12 12 22 28 56 78 104 28 28 28 28 28 28 90 90 90 44 26 26 26 60 40 60 60 75 Greatest Overweight (x) 7 | 1 3 2 5 5 4 5 5 6 5 6 3 2 2 2 2 2 2 7 2 2 4 1 4 3 4 4 5 4 3 3 3 6 Average Overweight (x) 2 | . 1 2 3 4 4 4 5 5 4 2 2 1 1 . 2 2 2 2 2 2 1 . 2 2 3 3 3 3 2 2 3 2 Largest Inventory Capacity 25 | 8 15 15 20 20 20 20 20 20 20 20 25 20 20 20 20 20 20 20 20 20 20 20 20 20 20 20 20 20 20 25 25 25 Average Capacity 20 | 6 12 15 15 20 20 20 20 20 20 20 19 20 20 20 20 20 20 20 20 20 20 20 20 20 20 20 20 20 20 22 25 25 Most Carried 25 | 4 14 15 19 20 20 20 20 20 20 20 21 20 19 18 19 20 20 20 19 20 20 20 20 20 20 20 20 20 20 25 25 25 Average Carried 19 | 2 8 14 15 19 20 19 19 19 19 19 19 19 17 16 18 19 19 19 17 19 19 19 18 18 19 19 19 19 19 21 24 21 Final Capacity 25 | 8 15 15 20 20 20 20 20 20 20 20 20 20 20 20 20 20 20 20 20 20 20 20 20 20 20 20 20 20 20 25 25 25 Final Carried 25 | 4 14 15 19 20 20 20 19 20 20 17 19 19 18 17 19 19 19 17 19 20 19 20 18 20 20 20 20 20 19 25 25 18 Class Distribution -------------------- 32% | Mutant 22% | Tank 9% | Gladiator 9% | Scavenger-Gladiator 6% | Scavenger-Mutant 4% | Scavenger-Tank 4% | Infiltrator-Tank 3% | Gunner 3% | Scavenger-Gunner Dominant Class ---------------- Mutant | -10/Materials Mutant | -10/Mines Tank | -9/Materials Tank | -9/Mines Tank | -9/Exiles Tank | -8/Mines Gunner | -8/Materials Gunner | -8/Storage Scavenger-Tank | -8/Recycling Scavenger-Gunner | -8/Scraptown Mutant | -6/Factory Mutant | -6/Waste Mutant | -6/Factory Scavenger-Mutant | -6/Lower Caves Mutant | -6/Lower Caves Mutant | -6/Data Miner Mutant | -5/Proximity Caves Mutant | -5/Factory Mutant | -5/Upper Caves Mutant | -5/Upper Caves Mutant | -5/Zhirov Mutant | -4/Proximity Caves Gladiator | -4/Factory Commander-Gladiator | -4/Extension Scavenger-Gladiator | -4/Cetus Commander-Gladiator | -4/Archives Scavenger-Gladiator | -4/Hub_04(d) Scavenger-Gladiator | -3/Research Infiltrator-Tank | -3/Testing Tank | -2/Research Tank | -2/Quarantine Tank | -2/Protoforge Resources | -11 -10 -10 -9 -9 -9 -8 -8 -8 -8 -8 -6 -6 -6 -6 -6 -6 -5 -5 -5 -5 -5 -4 -4 -4 -4 -4 -4 -3 -3 -2 -2 -2 ----------- Run | Yrd Mat Min Mat Min Exi Min Mat Sto Rec Scr Fac Was Fac Low Low Dat Pro Fac Upp Upp Zhi Pro Fac Ext Cet Arc Hub Res Tes Res Qua Frg Matter Collected 13991 | 209 380 65 825 66 . 325 656 716 26 630 909 . 404 163 29 . 159 853 47 186 131 200 914 548 95 125 347 465 890 465 414 2749 Remotely . | . . . . . . . . . . . . . . . . . . . . . . . . . . . . . . . . . Salvage Created 32455 | . 438 89 1375 . . 396 732 1189 163 610 1089 . 686 663 . . 168 1549 25 455 227 833 3325 996 138 305 1056 2514 2961 2231 1219 7023 Parts 1475 | . 25 12 80 . . 26 39 63 4 29 45 . 31 12 . . 7 61 . 10 5 29 136 32 5 15 50 123 148 113 69 306 Haulers Intercepted 22 | . 2 . 5 . . . 1 4 . . . . 2 . . . . 2 . . . 1 . 1 . . . . . 3 1 . Recyclers Shooed 9 | . . . 1 . . . 1 . . . 2 . . . . . . 1 . . . . . . . . 1 1 . 1 1 . Parts Field Recycled . | . . . . . . . . . . . . . . . . . . . . . . . . . . . . . . . . . Retrieved Matter . | . . . . . . . . . . . . . . . . . . . . . . . . . . . . . . . . . Parts Self-Destructed 33 | . . . . . . . . . . . . . . 3 3 . 7 . . 8 5 7 . . . . . . . . . . Prevented 26 | . . . . . . . . . . . . . . 2 . . . . . 2 . 22 . . . . . . . . . . Kills | -11 -10 -10 -9 -9 -9 -8 -8 -8 -8 -8 -6 -6 -6 -6 -6 -6 -5 -5 -5 -5 -5 -4 -4 -4 -4 -4 -4 -3 -3 -2 -2 -2 ------- Run | Yrd Mat Min Mat Min Exi Min Mat Sto Rec Scr Fac Was Fac Low Low Dat Pro Fac Upp Upp Zhi Pro Fac Ext Cet Arc Hub Res Tes Res Qua Frg Combat Hostiles Destroyed 437 | . 11 6 23 9 . 8 13 17 2 13 13 . 11 . . . 4 29 . 6 . 9 42 6 2 . 12 22 33 25 12 109 Melee 140 | . . . . . . . . . . . 5 . 3 . . . . 12 . 1 . 2 24 5 . . 8 11 19 16 9 25 Guns 69 | . 4 3 16 . . 8 12 15 1 7 . . . . . . . . . . . 1 1 . . . . . . . 1 . Cannons 67 | . . . . . . . . 2 . . 6 . 2 . . . . 12 . 3 . . 6 . . . 3 1 2 2 2 26 AOE 91 | . 7 3 7 9 . . 1 . . 6 2 . 6 . . . 4 5 . 1 . 2 4 1 . . . 1 . 1 . 31 Classes Destroyed 36 | . 6 . 4 1 . 1 . . . 4 2 . . 2 . . . 1 . . . . 1 . . 1 2 . 1 . 1 9 Worker 19 | . 1 . . . . . 1 1 . . 7 . 2 . . . . 1 . . . . 1 . . . 1 . 1 1 . 2 Builder 14 | . 1 . . . . . 1 3 . . . . 1 . . . . 1 . . . . 1 1 . . . 2 1 . . 2 Tunneler 3 | . . . . . . . . . . . 1 . . . . . . . . . . . . . . . . 2 . . . . Hauler 22 | . 2 . 5 . . . 1 4 . . . . 2 . . . . 2 . . . 1 . 1 . . . . . 3 1 . Recycler 27 | . 2 . 3 . . . 2 1 . . 4 . . . . . . 2 . . . . 2 2 . . 1 5 1 . 2 . Minesweeper 1 | . . . . . . . . . . . . . . 1 . . . . . . . . . . . . . . . . . . Mechanic 2 | . . . . . . . . . . . . . . . . . . . . . . . . . . . . . . . . 2 Operator 11 | . . . . . . . . . . . . . . . . . . . . . . . . . . 9 . 1 . . . 1 Drone 8 | . . . . . . . . . . . . . . . . . . . . . . . . . . . . . . . . 8 Watcher 21 | . . . 3 . . . . 1 . . . . 1 . . . . 1 . . . . 5 . . . 2 1 2 . 1 4 Swarmer 44 | . 6 6 7 . . . 4 1 . . 3 . 4 . . . 4 1 . . . . . . . . . . . . . 8 Saboteur 2 | . . . . . . . . . . . . . . . . . . . . . . . 1 . . . . . . . . 1 Grunt 104 | . 5 . 7 . . 4 3 4 . . 2 . 2 . . . . 5 . 5 . 8 22 2 . . 4 3 10 4 1 13 Brawler 8 | . . . 1 . . 1 . 1 . . . . . . . . . . . . . 1 2 . . . . 1 . . . 1 Duelist 6 | . . . 1 . . 1 . . . . . . . . . . . . . . . . 1 . . . . . . . . 3 Protector 4 | . . . . . . . . . . . . . . . . . . . . . . . . . . . 1 . . . . 3 Researcher 1 | . . . . . . . . . . . . . . . . . . . . . . . . . . . . . 1 . . . Sentry 48 | . . . 7 . . . 5 9 2 . 2 . 1 . . . . 3 . 1 . . 3 4 . . 1 1 . 4 . 5 Demolisher 1 | . . . . . . . . . . . . . . . . . . 1 . . . . . . . . . . . . . . Specialist 6 | . . . . . . . . . . . . . . . . . . . . . . . . . . . 1 5 . . . . Hunter 43 | . . . . . . 2 1 2 . . 1 . 2 . . . . 2 . . . . 2 . . . . 4 8 6 1 12 Programmer 88 | . . . . . . . . . . . 5 . 2 . . . . 5 . . . . 11 . . . 3 8 15 11 9 19 Behemoth 1 | . . . . . . . . . . . . . . . . . . . . . . . . . . . . . . . . 1 Cetus Guard 2 | . . . . . . . . . . . . . . . . . . . . . . . . . 2 . . . . . . . Lightning 2 | . . . . . . . . . . . . . . . . . . . . . . . . . . . 2 . . . . . Hotshot 11 | . . . . . . . . . . . . . . . . . . . . . . . . . . . . . . . . 11 Decapitator 2 | . . . . . . . . . . . . . . . . . . . . . . . . . . . . . . . . 2 Immortal 2 | . . . . . . . . . . . . . . . . . . . . . . . . . . . . . . . . 2 Overlord 1 | . . . . . . . . . . . . . . . . . . . . . . . . . . . . . . . . 1 Striker 5 | . . . . . . . . . . . . . . . . . . . . . . . . . . . . . . . . 5 Executioner 13 | . . . . . . . . . . . . . . . . . . . . . . . . . . . . . . . . 13 Alpha 7 2 | . . . . . . . . . . . . . . . . . . . . . . . . . . . . . . . 1 1 Federalist 4 | . . . . . . . . . . 4 . . . . . . . . . . . . . . . . . . . . . . Ranger 1 | . . . . . . . . . . 1 . . . . . . . . . . . . . . . . . . . . . . Guru 1 | . . . . . . . . . . 1 . . . . . . . . . . . . . . . . . . . . . . Scrapper 7 | . . . . . . . . . . 7 . . . . . . . . . . . . . . . . . . . . . . Elite 1 | . . . . . . . . . . . . . . . . . . . . . . . . . . . . . . . . 1 Scrapoid 1 | . . . . . . . . . . . . . . . . . . . . . . . . . . . . . . . . 1 Decomposer 6 | . . . . . . . . . . . . . . 4 . . . . 1 1 . . . . . . . . . . . . Packrat 3 | . . . . . . . . . . . . . . 3 . . . . . . . . . . . . . . . . . . Samaritan 7 | . . . . . . . . . . . . . . 6 . . . . . 1 . . . . . . . . . . . . Assembled 21 | . . . . 9 . . . . . . . . . . . . . 12 . . . . . . . . . . . . . . Guerrilla 2 | . . . . . . . . . . . . . . . . . . . . . . . . 2 . . . . . . . . Best Kill Streak 13 | . 7 3 8 7 . 3 5 4 1 7 4 . 6 1 . . 4 13 . 5 . 5 7 2 2 4 6 8 3 4 4 13 Combat Bots Only 12 | . 5 3 7 7 . 3 3 4 1 7 3 . 4 . . . 4 12 . 5 . 5 6 1 2 . 6 6 3 4 4 12 Max Kills in Single Turn 6 | . 2 2 4 3 . 1 1 2 1 2 2 . 4 1 . . 4 6 1 1 . 2 3 2 1 1 1 2 2 1 1 4 Gunslinging 1 | . . . 1 . . . . . . . . . . . . . . . . . . . . . . . . . . . . . Exploded 5 | . 2 2 4 3 . . 1 . . 2 2 . 3 . . . 4 5 . 1 . 2 2 1 . . . 1 . 1 . 3 Melee 1 | . . . . . . . . . . . 1 . 1 . . . . 1 . 1 . 1 1 1 . . 1 1 1 1 1 1 Uniques/NPCs Destroyed . | . . . . . . . . . . . . . . . . . . . . . . . . . . . . . . . . . Combat | -11 -10 -10 -9 -9 -9 -8 -8 -8 -8 -8 -6 -6 -6 -6 -6 -6 -5 -5 -5 -5 -5 -4 -4 -4 -4 -4 -4 -3 -3 -2 -2 -2 -------- Run | Yrd Mat Min Mat Min Exi Min Mat Sto Rec Scr Fac Was Fac Low Low Dat Pro Fac Upp Upp Zhi Pro Fac Ext Cet Arc Hub Res Tes Res Qua Frg Hostile Shots Fired 2963 | . 47 15 53 13 . 33 56 82 4 82 118 . 122 . . . 16 173 . 28 . 62 246 107 8 6 152 233 313 161 128 705 Missed 890 | . 10 5 20 6 . 14 17 30 1 21 32 . 32 . . . 6 51 . 6 . 17 74 24 3 . 59 106 86 44 30 196 Deflected 52 | . . . . . . . . . . . . . . . . . . 4 . . . 3 6 4 . . 1 4 10 3 5 12 Hits 2073 | . 37 10 33 7 . 19 39 52 3 61 86 . 90 . . . 10 122 . 22 . 45 172 83 5 6 93 127 227 117 98 509 Melee 76 | . . . . . . 1 . 3 . 15 . . . . . . . 32 . . . 1 2 . . . . . . . . 22 Projectile 1997 | . 37 10 33 7 . 18 39 49 3 46 86 . 90 . . . 10 90 . 22 . 44 170 83 5 6 93 127 227 117 98 487 AOE 7 | . . . . . . . . . . . . . . . . . . 4 . . . . 3 . . . . . . . . . Critical Strikes 111 | . 1 . . . . 1 3 5 . 3 4 . 2 . . . . 6 . . . 2 13 9 . . 6 2 9 8 6 31 Actively Blocked 5 | . . . . . . . . . . . . . . . . . . . . . . . . . . . . . . 1 1 3 Part Disruptions 2 | . . . . . . . . . . . . . . . . . . 1 . . . . . . . . . . 1 . . . Damage Taken 31025 | . 383 100 501 103 . 276 558 819 44 986 1299 . 1413 17 . . 163 2805 . 401 . 571 2853 1669 89 123 1665 1561 1779 1162 1052 8633 Core 3650 | . 32 33 58 31 . 31 71 66 . 160 200 . 42 17 . . . 342 . 9 . 41 240 320 . 32 100 140 229 98 82 1276 Absorbed by Shields 8970 | . . . . . . . . . . . . . . . . . . . . . . . 663 343 62 48 728 572 1546 1157 1067 2784 Reduced by Siege Mode 20 | . . . . . . . . . . . . . . . . . . 10 . . . . . . . . . 6 . . . 4 Redirected to Shielding 830 | . . . . . . . . . . . . . . . . . . . . . . . 100 . . . . . 15 32 19 664 Ignored by Resistances 5627 | . . . . . . . . . . . 24 . 66 . . . . 48 . 97 . 257 334 384 . . 146 241 682 440 111 2797 Regen/Repaired (Parts) 359 | . 41 . . . . . 64 108 . . 100 . 20 13 . . 9 4 . . . . . . . . . . . . . . Core Remaining (%) 66 | 100 . 74 . . . 70 . . . 46 . . . . . . 69 . . . . 60 . . . . 39 . 71 . . . Volleys Fired 783 | . 35 7 52 7 . 16 43 75 5 17 35 12 13 1 . . 16 57 6 24 . 20 39 14 6 2 8 8 56 14 17 178 Largest 3 | . 2 2 3 1 . 3 3 3 3 3 2 2 2 2 . . 2 2 1 1 . 1 1 2 1 1 1 1 2 1 2 2 Hottest 258 | . 70 80 120 30 . 198 76 198 183 187 90 130 130 60 . . 90 90 30 75 . 60 75 149 225 75 90 113 207 113 96 258 Shots Fired 1245 | . 56 13 144 7 . 48 123 198 16 35 60 20 24 3 1 . 19 59 6 26 . 21 40 22 6 2 8 8 58 14 19 189 Gun 638 | . 44 12 140 . . 45 120 165 16 29 . . . . . . . . . 8 . 15 21 . 1 2 . . 17 1 2 . Cannon 499 | . . . . . . 3 . 33 . . 55 20 22 3 1 . 17 58 6 15 . . 3 17 . . 5 2 35 10 16 178 Launcher 97 | . 12 1 4 7 . . 3 . . 6 5 . 2 . . . 2 1 . 3 . 6 16 5 5 . 2 6 . 2 . 9 Special 11 | . . . . . . . . . . . . . . . . . . . . . . . . . . . 1 . 6 1 1 2 Kinetic 537 | . 23 . 132 . . 39 120 74 . 1 52 8 8 . . . . . . 5 . . 3 9 . . . . . 2 17 44 Thermal 429 | . 21 . . . . 9 . 119 16 28 3 12 14 3 1 . 17 58 6 18 . 2 21 8 1 2 5 2 11 2 . 50 Explosive 56 | . 12 1 4 7 . . 3 . . 6 5 . 2 . . . 2 1 . . . . 2 5 . . . . . . . 6 Electromagnetic 212 | . . 12 8 . . . . 5 . . . . . . . . . . . 3 . 19 14 . 5 . 2 6 41 9 1 87 Robot Hit Streak 32 | . 16 2 25 . . 7 18 16 17 32 9 6 5 2 . . . 14 . 2 . 3 19 14 2 1 2 6 9 6 4 12 Robot Miss Streak 6 | . 2 2 6 . . 2 4 4 . 1 5 2 2 . . . . 2 . 3 . 1 1 5 . 1 1 2 2 2 2 6 Penetration Max 1 | . . . . . . . . 1 . . . . . . . . . . . . . . . 1 . . . . . . . 1 Secondary Targets 6 | . . . 2 . . 1 1 1 . 1 . . . . . . . . . . . . . . . . . . . . . . Max Gunslinging Chain 1 | . . . 1 . . 1 1 1 . 1 . . . . . . . . . . . . . . . . . . . . . . Capacitor 109 | . . . . . . . . . . . . . . . . . . 51 6 16 . 15 21 . . . . . . . . . Autonomous 113 | . . . . . . . . . . . . . . . . . . 4 . 2 . 4 18 8 1 1 14 5 9 4 3 40 Shots Hit Robots 1353 | . 36 6 95 . . 33 81 131 16 28 67 13 30 18 . . 2 80 1 11 3 18 105 43 2 12 38 66 116 69 48 185 Core Hits 757 | . 27 6 47 15 . 17 28 42 3 20 36 3 20 5 . . 6 40 . 13 1 18 76 20 6 4 20 39 41 39 18 147 Critical Kills 2 | . . . 2 . . . . . . . . . . . . . . . . . . . . . . . . . . . . . Critical Parts Destroyed . | . . . . . . . . . . . . . . . . . . . . . . . . . . . . . . . . . Critical Strikes 43 | . 1 . 2 . . . . 7 2 1 7 1 1 . . . . . . . . . 4 1 . . . 4 2 . . 10 Burn 11 | . 1 . . . . . . 7 2 1 . . . . . . . . . . . . . . . . . . . . . . Destroy 2 | . . . 2 . . . . . . . . . . . . . . . . . . . . . . . . . . . . . Blast 7 | . . . . . . . . . . . 5 1 1 . . . . . . . . . . . . . . . . . . . Corrupt 10 | . . . . . . . . . . . . . . . . . . . . . . . . . . . . . . . . 10 Smash 1 | . . . . . . . . . . . . . . . . . . . . . . . . 1 . . . . . . . . Melee Attacks 940 | . 7 . 1 . . . . . 3 2 69 . 26 17 . . 9 72 5 10 3 9 115 35 . 11 47 98 115 91 74 121 Impact 16 | . 7 . . . . . . . 3 . . . . . . . . . . . . . . 6 . . . . . . . . Slashing 924 | . . . 1 . . . . . . 2 69 . 26 17 . . 9 72 5 10 3 9 115 29 . 11 47 98 115 91 74 121 Piercing . | . . . . . . . . . . . . . . . . . . . . . . . . . . . . . . . . . Sneak Attacks 93 | . 1 . . . . . . . . . 11 . 3 16 . . . 5 1 2 . 1 7 4 . 10 6 9 3 6 4 4 Combat Hostiles 16 | . . . . . . . . . . . 1 . . . . . . . . . . . 4 1 . . 3 2 1 2 . 2 Follow-up Attacks 27 | . . . . . . . . . . . . . . . . . . 5 . . . . 2 . . . 3 8 3 1 1 4 Damage Inflicted 92328 | . 1086 180 1845 491 . 560 1558 2374 359 909 3254 453 2054 1397 . . 474 5252 153 936 415 1559 8773 3871 546 1475 3946 5275 7068 5074 4206 26785 Guns 7305 | . 466 73 1493 . . 497 1292 1961 287 451 . . . . . . . . . . . 234 437 . . 31 . . 24 31 28 . Cannons 24029 | . . . . . . 63 . 413 . . 962 453 401 26 . . . 2159 . 343 . 354 1621 1226 74 89 1240 498 1608 513 585 11401 Explosions 19506 | . 533 107 352 491 . . 266 . . 458 342 . 834 . . . 319 625 . 281 . 609 1768 733 472 . 198 768 . 398 . 9952 Melee 41488 | . 87 . . . . . . . 72 . 1950 . 819 1371 . . 155 2468 153 312 415 362 4947 1912 . 1355 2508 4009 5436 4132 3593 5432 Ramming . | . . . . . . . . . . . . . . . . . . . . . . . . . . . . . . . . . Kinetic 7134 | . 241 . 1403 . . 418 1292 900 . . 962 196 110 . . . . . . 78 . . 104 360 . . . . . 31 362 677 Thermal 18933 | . 225 25 35 . . 142 . 1404 287 451 . 257 803 26 . . . 1832 . 108 . . 628 233 164 31 38 37 . . . 12207 Explosive 6186 | . 533 82 317 491 . . 266 . . 458 342 . 322 . . . 319 567 . . . . 245 733 . . . . . . . 1511 Electromagnetic 8933 | . . 73 90 . . . . 70 . . . . . . . . . . . 281 . 843 1332 . 308 . 198 768 859 569 . 3542 Impact 418 | . 87 . . . . . . . 72 . . . . . . . . . . . . . . 259 . . . . . . . . Slashing 41070 | . . . . . . . . . . . 1950 . 819 1371 . . 155 2468 153 312 415 362 4947 1653 . 1355 2508 4009 5436 4132 3593 5432 Piercing . | . . . . . . . . . . . . . . . . . . . . . . . . . . . . . . . . . Phasic 9654 | . . . . . . . . . . . . . . . . . . 385 . 157 . 354 1517 633 74 89 1202 461 773 342 251 3416 Highest Corruption 27 | . . 13 . . . . . 1 1 . 6 6 9 9 9 9 9 17 17 17 17 17 9 9 9 9 27 7 3 . . 24 Average Corruption 7 | . . 13 . . . . . 1 1 . 4 6 7 9 9 9 9 12 17 17 17 17 4 8 8 5 6 5 3 . . 14 Corruption Purged 24 | . . . . . . . . . . . . . . . . . . . . . . . . 3 . 15 . 6 . . . . Corruption Blocked 30 | . . . . . . . . . . . . . . . . . . . . . . . . . . . . . 17 6 7 . Effects 623 | . . . . . . . . 9 5 . 33 7 13 37 24 4 24 62 15 29 8 20 47 44 12 5 14 31 54 . . 126 Message Errors 144 | . . . . . . . . . . . 9 1 2 10 6 3 5 14 1 11 2 2 8 11 1 . 3 8 18 . . 29 Matter Fused 161 | . . . . . . . . 4 2 . 6 2 2 9 6 . 2 13 7 6 4 6 12 11 2 . 3 9 17 . . 38 Heat Flow Errors 85 | . . . . . . . . 2 1 . 6 1 2 5 2 . 6 9 4 1 1 2 6 6 2 2 2 3 3 . . 19 Energy Discharges 82 | . . . . . . . . . . . 2 2 3 7 2 1 3 5 1 5 . 3 7 6 5 1 4 2 6 . . 17 Parts Rejected 10 | . . . . . . . . . . . . 1 . . . . . 2 . . . . . . . 1 . 2 1 . . 3 Parts Fused 9 | . . . . . . . . . . . . . 1 1 1 . . 1 . . . . . 3 . . . . 1 . . 1 Data Loss (minor) 61 | . . . . . . . . . 1 . 5 . 1 4 2 . 3 10 1 3 1 3 6 3 1 . . 3 5 . . 9 Data Loss (major) 33 | . . . . . . . . . . . 2 . 1 . 1 . 4 3 1 1 . 1 5 3 1 . 1 4 2 . . 3 Misfires 15 | . . . . . . . . 2 1 . . . 1 1 1 . 1 2 . 2 . 2 1 . . . . . 1 . . . Alerts 11 | . . . . . . . . . . . 2 . . . 3 . . . . . . . 2 1 . 1 1 . . . . 1 Misdirections 7 | . . . . . . . . . . . . . . . . . . 2 . . . . . . . . . . . . . 5 Weapon Failures 5 | . . . . . . . . 1 . . 1 . . . . . . 1 . . . 1 . . . . . . . . . 1 Overload Shots 1 | . . . . . . . . . . . . . . . . . . . . . . . . . 1 . . . . . . . Overflow Damage 8783 | . 7 . 25 26 . . 5 3 . . 381 . 199 703 . . . 577 149 . 297 27 429 187 . 499 778 790 677 375 433 2216 Projectiles 1964 | . . . . . . . . 3 . . 17 . . 11 . . . 259 . . . 27 95 25 . . 238 49 56 72 83 1029 Explosions 998 | . 3 . 25 26 . . 5 . . . 49 . 107 . . . . 8 . . . . 18 18 . . . . . . . 739 Melee 5821 | . 4 . . . . . . . . . 315 . 92 692 . . . 310 149 . 297 . 316 144 . 499 540 741 621 303 350 448 Knockbacks 14 | . . . . . . . . . . . 4 . 1 . . . . . . . . . . 3 . . . . . . 1 5 Impact 1 | . . . . . . . . . . . . . . . . . . . . . . . . 1 . . . . . . . . Kinetic 12 | . . . . . . . . . . . 4 . 1 . . . . . . . . . . 2 . . . . . . 1 4 Secondary 1 | . . . . . . . . . . . . . . . . . . . . . . . . . . . . . . . . 1 Self-Inflicted Damage 759 | . 23 18 77 . . . . . . 41 . . 146 . . . . . . . . . 179 44 . . . 10 . 38 . 183 Shots 28 | . 1 1 3 . . . . . . 1 . . 3 . . . . . . . . . 7 1 . . . 1 . 4 . 6 Rammed . | . . . . . . . . . . . . . . . . . . . . . . . . . . . . . . . . . Targets Rammed . | . . . . . . . . . . . . . . . . . . . . . . . . . . . . . . . . . Kicked . | . . . . . . . . . . . . . . . . . . . . . . . . . . . . . . . . . Crushed . | . . . . . . . . . . . . . . . . . . . . . . . . . . . . . . . . . Highest Temperature 572 | . 69 . 38 . . 246 241 426 94 366 205 178 240 266 164 . 270 456 166 181 196 196 473 572 219 137 123 217 280 344 . 220 Average Temperature 93 | . 24 . 11 . . 64 69 104 49 135 73 45 96 99 76 . 127 118 85 60 110 97 120 169 106 51 44 76 101 105 . 77 Received Heat Transfer 4322 | . 111 . 150 . . 108 189 306 9 445 105 . 309 . . . . 389 . 141 . 215 579 266 . 6 79 218 126 56 64 451 Effects 22 | . . . . . . . . 7 . 1 . . . . . . . 2 . . . . 1 8 . . . . 2 1 . . Shutdowns 4 | . . . . . . . . . . . . . . . . . . 1 . . . . 1 2 . . . . . . . . Energy Bleed 3 | . . . . . . . . 2 . 1 . . . . . . . . . . . . . . . . . . . . . . Interference 6 | . . . . . . . . 2 . . . . . . . . . . . . . . . 2 . . . . 2 . . . Matter Decay 1 | . . . . . . . . . . . . . . . . . . . . . . . . 1 . . . . . . . . Short Circuit 2 | . . . . . . . . . . . . . . . . . . 1 . . . . . 1 . . . . . . . . Damage (minor) 1 | . . . . . . . . . . . . . . . . . . . . . . . . . . . . . . 1 . . Damage (major) 5 | . . . . . . . . 3 . . . . . . . . . . . . . . . 2 . . . . . . . . Siege Activations 4 | . . . . . . . . . . . . . . . . . . 1 . . . . . . . . . 1 . . . 2 Total Turns 26 | . . . . . . . . . . . . . . . . . . 6 . . . . . . . . . 5 . . . 15 Longest Duration 10 | . . . . . . . . . . . . . . . . . . 6 . . . . . . . . . 5 . . . 10 Martial Activations . | . . . . . . . . . . . . . . . . . . . . . . . . . . . . . . . . . Shielding Activations . | . . . . . . . . . . . . . . . . . . . . . . . . . . . . . . . . . Robots Disrupted 13 | . . . . . . . . . . . . . 1 . . . . 1 . . . . 2 . . . 2 2 2 2 . 1 Combat Hostiles 12 | . . . . . . . . . . . . . 1 . . . . 1 . . . . 2 . . . 2 2 1 2 . 1 Robots Corrupted 45 | . 1 . . . . . . . . . . . . . . . . . . 1 . 4 4 . 2 . . 3 5 2 . 23 Combat Hostiles 42 | . . . . . . . . . . . . . . . . . . . . 1 . 4 4 . 2 . . 3 5 2 . 21 Parts Fried 65 | . 3 . . . . . . . . . . . . 1 . . . . . 2 . 8 3 . 2 . . 4 9 4 . 29 Impact Corruptions 2 | . 1 . . . . . . . . . . . . . . . . . . . . . . . . . . . . . . 1 Robots Melted 2 | . . . . . . . . 1 1 . . . . . . . . . . . . . . . . . . . . . . . Combat Hostiles 1 | . . . . . . . . . 1 . . . . . . . . . . . . . . . . . . . . . . . Parts Melted 18 | . . . . . . . . 2 2 4 . . 3 . . . . 1 . . . . 2 . . . . 1 . . . 3 Heat Transferred 18748 | . 703 50 50 . . 296 . 3478 703 833 . 400 672 37 . . . 1294 . 148 . . 903 350 100 37 . 37 . . . 8657 Parts Sabotaged . | . . . . . . . . . . . . . . . . . . . . . . . . . . . . . . . . . Parts Stolen 1 | . . . . . . . . . . 1 . . . . . . . . . . . . . . . . . . . . . . Parts Stripped 121 | . . . . . . . . . . . . . . . . . . . . 5 . . 23 . . 14 9 19 31 20 . . Power Chain Reactions 10 | . . 1 1 . . . . . . . . . . . . . . 1 . . . . 5 . 1 . . . . . . 1 Alert | -11 -10 -10 -9 -9 -9 -8 -8 -8 -8 -8 -6 -6 -6 -6 -6 -6 -5 -5 -5 -5 -5 -4 -4 -4 -4 -4 -4 -3 -3 -2 -2 -2 ------- Run | Yrd Mat Min Mat Min Exi Min Mat Sto Rec Scr Fac Was Fac Low Low Dat Pro Fac Upp Upp Zhi Pro Fac Ext Cet Arc Hub Res Tes Res Qua Frg Maximum Alert Level 5 | . . . 1 . . . . . . . 1 . 1 . . . . 1 . . . . 3 2 1 1 2 2 2 2 1 5 Low Security (%) 58 | 100 100 100 44 100 . 100 100 100 100 . 98 100 83 . . . . 89 . . . . 78 52 97 42 1 18 50 43 34 4 Level 1 23 | . . . 55 . . . . . . . 1 . 16 . . . . 10 . . . . 9 42 2 57 4 57 26 46 65 24 Level 2 11 | . . . . . . . . . . . . . . . . . . . . . . . 6 5 . . 93 24 22 10 . 22 Level 3 2 | . . . . . . . . . . . . . . . . . . . . . . . 5 . . . . . . . . 18 Level 4 . | . . . . . . . . . . . . . . . . . . . . . . . . . . . . . . . . 6 Level 5 2 | . . . . . . . . . . . . . . . . . . . . . . . . . . . . . . . . 23 High Security . | . . . . . . . . . . . . . . . . . . . . . . . . . . . . . . . . . Max Security . | . . . . . . . . . . . . . . . . . . . . . . . . . . . . . . . . . Peak Influence 3069 | . 147 138 375 127 . 125 168 192 30 . 219 14 241 . . . . 280 . . . . 726 428 204 212 643 487 599 484 399 3069 Initial 354 | . . 6 . 127 . . 21 46 10 . . 14 . . . . . . . . . . . 354 64 39 56 327 78 335 270 216 Average 272 | . 34 45 203 53 . 62 77 103 3 . 32 1 122 . . . . 61 . . . . 142 230 145 183 530 317 232 235 248 997 Influence Increases 16401 | . 429 178 744 16 . 215 467 617 83 . 547 5 481 5 . . 110 673 . 145 15 195 1351 730 195 283 1307 723 1252 835 658 4142 Destroy 0b10 Robot/C 8480 | . 220 120 460 . . 160 260 340 40 . 260 . 220 . . . 80 340 . 120 . 180 840 340 80 80 480 440 680 540 240 1960 Destroy 0b10 Robot/NC 765 | . 30 . 55 . . . 25 50 5 . 60 . 30 5 . . 5 35 . . 15 5 45 35 5 45 50 55 55 20 25 110 Destroy Leader 1796 | . 44 20 146 . . 40 82 130 . . 90 . 56 . . . 10 86 . 10 . 10 170 40 . . 128 92 114 126 54 348 Allied During Kill 774 | . . . . . . . . . . . . . . . . . . . . . . . . 174 53 125 388 2 12 20 . . Successful Hack 839 | . 26 . 5 . . . 31 33 36 . 60 . . . . . . 46 . . . . 14 37 . . 18 32 243 48 105 105 Select Force Hacks 180 | . 30 . . . . . . . . . . . . . . . . . . . . . . . . . 150 . . . . . Disable Machine 1020 | . 15 30 30 . . . . 30 . . 30 . 75 . . . . 45 . . . . 90 . 15 15 . . 75 . 75 495 Destroy Structure 2007 | . 64 8 18 16 . . 24 4 2 . 47 5 70 . . . . 76 . . . . 132 104 42 18 78 72 58 81 69 1019 Partial Spotted 105 | . . . 15 . . . . . . . . . . . . . . . . . . . . . . . . . 15 . 30 45 Lose Combat Pursuer 435 | . . . 15 . . 15 45 30 . . . . 30 . . . 15 45 . 15 . . 60 . . . 15 30 . . 60 60 Influence Decreases 13339 | . 411 196 415 345 . 160 411 699 112 . 505 47 266 220 . . 110 412 261 145 15 195 627 1338 212 220 844 1208 795 952 752 1466 Entered New Map 2128 | . . 12 . 202 . . 34 65 19 . . 28 . 80 . . . . 98 . . . . 370 52 60 106 298 62 262 210 170 Time Decay 8546 | . 259 184 395 143 . 150 357 474 93 . 335 19 206 140 . . 110 313 163 135 15 165 558 518 140 140 428 550 658 630 542 726 Lost Part 796 | . 10 . 20 . . 10 20 10 . . 10 . 60 . . . . 87 . 10 . 30 59 120 . . 40 40 10 10 . 250 Lost Ally 527 | . . . . . . . . . . . 10 . . . . . . 12 . . . . 10 180 20 20 120 20 65 50 . 20 Purge Threat 1342 | . 142 . . . . . . 150 . . 150 . . . . . . . . . . . . 150 . . 150 300 . . . 300 Squads Dispatched 105 | . 2 . 2 . . . 1 1 . . 13 . 4 . . . . 7 . . . . 14 1 . . 9 10 10 11 5 15 Investigation 29 | . 2 . 1 . . . . . . . 7 . . . . . . 2 . . . . 3 1 . . 3 1 2 3 . 4 Extermination 40 | . . . . . . . . . . . 4 . 1 . . . . 3 . . . . 5 . . . 3 3 6 6 4 5 Reinforcement 29 | . . . 1 . . . . 1 . . 2 . 3 . . . . 2 . . . . 2 . . . 3 5 2 2 1 5 Assault 6 | . . . . . . . . . . . . . . . . . . . . . . . 4 . . . . 1 . . . 1 Garrison 1 | . . . . . . . 1 . . . . . . . . . . . . . . . . . . . . . . . . . Intercept . | . . . . . . . . . . . . . . . . . . . . . . . . . . . . . . . . . Searches Triggered . | . . . . . . . . . . . . . . . . . . . . . . . . . . . . . . . . . Data Miner Redirects 6 | . . . . . . . . . . . . . . . . . . 1 . . . . 1 1 . . 1 1 . . . 1 Construction Impeded 6 | . . . . . . . . . . . 1 . 1 . . . . 2 . . . . 1 . . . . . . . . 1 Haulers Reinforced 1 | . . . . . . . . . . . . . 1 . . . . . . . . . . . . . . . . . . . Active Scanning Responses . | . . . . . . . . . . . . . . . . . . . . . . . . . . . . . . . . . Cargo Convoy Interrupts . | . . . . . . . . . . . . . . . . . . . . . . . . . . . . . . . . . Stealth | -11 -10 -10 -9 -9 -9 -8 -8 -8 -8 -8 -6 -6 -6 -6 -6 -6 -5 -5 -5 -5 -5 -4 -4 -4 -4 -4 -4 -3 -3 -2 -2 -2 --------- Run | Yrd Mat Min Mat Min Exi Min Mat Sto Rec Scr Fac Was Fac Low Low Dat Pro Fac Upp Upp Zhi Pro Fac Ext Cet Arc Hub Res Tes Res Qua Frg Distress Signals 31 | . 3 . 3 . . . 3 2 . . 2 . . . . . . 1 . . . . 2 . . . 4 1 . . 1 9 Communications Jammed 245 | . . . . . . . . . . . . . . . . . . . . . . . 13 9 . . 92 21 7 14 6 83 Distress Signals 240 | . . . . . . . . . . . . . . . . . . . . . . . 13 9 . . 92 17 6 14 6 83 Times Spotted 687 | . 24 6 35 8 . 9 21 27 2 27 17 6 20 . . . 5 37 . 7 . 9 61 23 5 6 31 33 43 37 27 161 Peak Tracking Total 11 | . 7 3 8 7 . 4 5 5 1 6 3 6 5 . 1 . 4 8 . 4 . 5 7 5 5 2 7 6 4 4 4 11 Tactical Retreats 28 | . . . 1 . . 1 3 2 . . . . 2 . . . 1 2 . 1 . . 4 . . . 1 2 . . 4 4 Traps | -11 -10 -10 -9 -9 -9 -8 -8 -8 -8 -8 -6 -6 -6 -6 -6 -6 -5 -5 -5 -5 -5 -4 -4 -4 -4 -4 -4 -3 -3 -2 -2 -2 ------- Run | Yrd Mat Min Mat Min Exi Min Mat Sto Rec Scr Fac Was Fac Low Low Dat Pro Fac Upp Upp Zhi Pro Fac Ext Cet Arc Hub Res Tes Res Qua Frg Traps Triggered 27 | . 1 . . . . . . 5 . . 1 . . . . . . 6 . . . . . 1 . . . . . 4 1 8 Indirectly . | . . . . . . . . . . . . . . . . . . . . . . . . . . . . . . . . . Trap Hack Attempts . | . . . . . . . . . . . . . . . . . . . . . . . . . . . . . . . . . Triggered . | . . . . . . . . . . . . . . . . . . . . . . . . . . . . . . . . . Disarmed . | . . . . . . . . . . . . . . . . . . . . . . . . . . . . . . . . . Reprogrammed . | . . . . . . . . . . . . . . . . . . . . . . . . . . . . . . . . . Reused . | . . . . . . . . . . . . . . . . . . . . . . . . . . . . . . . . . Traps Extracted . | . . . . . . . . . . . . . . . . . . . . . . . . . . . . . . . . . Installed . | . . . . . . . . . . . . . . . . . . . . . . . . . . . . . . . . . Triggered . | . . . . . . . . . . . . . . . . . . . . . . . . . . . . . . . . . Machines | -11 -10 -10 -9 -9 -9 -8 -8 -8 -8 -8 -6 -6 -6 -6 -6 -6 -5 -5 -5 -5 -5 -4 -4 -4 -4 -4 -4 -3 -3 -2 -2 -2 ---------- Run | Yrd Mat Min Mat Min Exi Min Mat Sto Rec Scr Fac Was Fac Low Low Dat Pro Fac Upp Upp Zhi Pro Fac Ext Cet Arc Hub Res Tes Res Qua Frg Machines Disabled 73 | . 1 2 2 . . . . 2 . . 2 . 5 . . . . 3 1 . . . 6 . 3 1 . . 6 . 5 34 Max in Single Turn 6 | . 1 2 1 . . . . 1 . . 1 . 4 . . . . 1 1 . . . 4 . 1 . . . 1 . 1 6 Garrison Access 2 | . . . . . . . . . . . . . . . . . . . . . . . . . . . . 1 1 . . . Network Hub 4 | . . . . . . . . . . . . . . . . . . . . . . . . . . . 4 . . . . . Machines Repaired . | . . . . . . . . . . . . . . . . . . . . . . . . . . . . . . . . . Machines Dismantled . | . . . . . . . . . . . . . . . . . . . . . . . . . . . . . . . . . Machines Sabotaged 3 | . . . . . . . . . . . . . . . . . . . . . . . . . . . 3 . . . . . Overloaded Fab Kills . | . . . . . . . . . . . . . . . . . . . . . . . . . . . . . . . . . Hacking | -11 -10 -10 -9 -9 -9 -8 -8 -8 -8 -8 -6 -6 -6 -6 -6 -6 -5 -5 -5 -5 -5 -4 -4 -4 -4 -4 -4 -3 -3 -2 -2 -2 --------- Run | Yrd Mat Min Mat Min Exi Min Mat Sto Rec Scr Fac Was Fac Low Low Dat Pro Fac Upp Upp Zhi Pro Fac Ext Cet Arc Hub Res Tes Res Qua Frg Machines Accessed 157 | . 7 . 8 . 1 . 4 7 7 7 17 . . . . 4 . 15 . . 5 . 7 7 . . 6 6 15 8 11 15 Terminals 89 | . 5 . 8 . . . 3 6 5 . 6 . . . . . . 9 . . . . 4 6 . . 6 3 8 4 9 7 Fabricators 16 | . . . . . . . . . . . 3 . . . . . . 5 . . . . . . . . . 1 2 1 . 4 Repair Stations 6 | . 1 . . . . . 1 1 . . 1 . . . . . . . . . . . . . . . . . 1 . 1 . Recycling Units 15 | . 1 . . . . . . . . . 5 . . . . . . . . . . . 3 1 . . . . . 2 . 3 Scanalyzers 7 | . . . . . . . . . . . 1 . . . . . . 1 . . . . . . . . . . 3 . 1 1 Garrison Access 5 | . . . . . . . . . . . 1 . . . . . . . . . . . . . . . . 2 1 1 . . Total Hacks 622 | . 26 . 19 . 4 . 13 16 44 42 40 . . . . 29 . 33 . . 18 . 12 17 . . 16 26 78 39 81 69 Successful 307 | . 16 . 5 . 4 . 3 9 35 42 21 . . . . 29 . 9 . . 18 . 3 11 . . 8 6 24 13 32 19 Failed 313 | . 10 . 13 . . . 10 7 8 . 19 . . . . . . 24 . . . . 9 6 . . 8 20 54 26 49 50 Catastrophic 83 | . 1 . 2 . . . 2 2 2 . 8 . . . . . . 3 . . . . 2 1 . . 2 6 20 4 13 15 Database Lockouts 2 | . . . 1 . . . . . 1 . . . . . . . . . . . . . . . . . . . . . . . Manual 222 | . 12 . 16 . . . 6 8 12 . 15 . . . . . . 19 1 . . . 11 14 1 . 11 7 29 14 21 25 Terminals 344 | . 22 . 19 . . . 9 14 19 . 17 . . . . . . 21 . . . . 8 16 . . 16 19 54 26 47 37 Fabricators 44 | . . . . . . . . . . . 6 . . . . . . 10 . . . . . . . . . 3 7 3 . 15 Repair Stations 16 | . 2 . . . . . 4 2 . . 3 . . . . . . . . . . . . . . . . . 1 . 4 . Recycling Units 34 | . 2 . . . . . . . . . 8 . . . . . . . . . . . 4 1 . . . . . 7 . 12 Scanalyzers 51 | . . . . . . . . . . . 4 . . . . . . 2 . . . . . . . . . . 10 . 30 5 Garrison Access 15 | . . . . . . . . . . . 2 . . . . . . . . . . . . . . . . 4 6 3 . . Terminal Hacks 189 | . 11 . 4 . 4 . . 5 32 42 7 . . . . 29 . 1 . . 18 . . 3 . . 4 3 8 6 7 5 Record 90 | . 1 . . . 4 . . . 24 40 . . . . . 11 . . . . 6 . . . . . . . 1 . 2 1 Part Schematic 16 | . . . . . . . . . 1 . . . . . . 11 . . . . 4 . . . . . . . . . . . Robot Schematic 5 | . . . . . . . . . 1 . . . . . . 4 . . . . . . . . . . . . . . . . Robot Analysis 12 | . 4 . 1 . . . . 1 1 . . . . . . . . . . . 4 . . 1 . . . . . . . . Prototype ID Bank 13 | . 2 . 1 . . . . . 2 . . . . . . 3 . . . . 4 . . . . . . . 1 . . . Open Door 4 | . . . . . . . . 2 . 1 . . . . . . . . . . . . . . . . . . . . 1 . Open DSF 2 | . . . . . . . . . . . 1 . . . . . . . . . . . . . . . . . . 1 . . Branch Access Points 6 | . . . 1 . . . . 1 . . 1 . . . . . . 1 . . . . . . . . . 1 . 1 . . Terminal Index 1 | . . . . . . . . . . . . . . . . . . . . . . . . . . . . . 1 . . . Fabricator Index 1 | . . . . . . . . . . . . . . . . . . . . . . . . . . . . . 1 . . . Recycling Unit Index 1 | . . . . . . . . . . . . . . . . . . . . . . . . . . . . . 1 . . . Alert Level 8 | . . . 1 . . . . . . . 1 . . . . . . . . . . . . 1 . . 2 . . 1 1 1 Unreport Threat 9 | . 1 . . . . . . 1 . . 1 . . . . . . . . . . . . 1 . . 1 2 . . . 2 Locate Traps 9 | . 2 . . . . . . . . . 1 . . . . . . . . . . . . . . . 1 . 1 1 3 . Recall Extermination 2 | . . . . . . . . . . . . . . . . . . . . . . . . . . . . . 1 1 . . Recall Reinforcements 1 | . . . . . . . . . . . . . . . . . . . . . . . . . . . . . . . . 1 Hauler Manifests 2 | . . . . . . . . . 1 . 1 . . . . . . . . . . . . . . . . . . . . . Registered Components 1 | . . . . . . . . . . . 1 . . . . . . . . . . . . . . . . . . . . . Zone Layout 4 | . 1 . . . . . . . 1 . . . . . . . . . . . . . . . . . . . 1 1 . . Proto ID Catalog 1 | . . . . . . . . . . 1 . . . . . . . . . . . . . . . . . . . . . . Release Object 1 | . . . . . . . . . 1 . . . . . . . . . . . . . . . . . . . . . . . Fabricator Hacks 15 | . . . . . . . . . . . 2 . . . . . . 4 . . . . . . . . . 1 4 1 . 3 Network Status 3 | . . . . . . . . . . . 1 . . . . . . 1 . . . . . . . . . . . 1 . . Load Schematic 7 | . . . . . . . . . . . . . . . . . . 1 . . . . . . . . . 1 2 . . 3 Build 5 | . . . . . . . . . . . 1 . . . . . . 2 . . . . . . . . . . 2 . . . Repair Station Hacks 9 | . 2 . . . . . 2 2 . . 1 . . . . . . . . . . . . . . . . . 1 . 1 . Scan Component 6 | . 1 . . . . . 1 1 . . 1 . . . . . . . . . . . . . . . . . 1 . 1 . Repair 3 | . 1 . . . . . 1 1 . . . . . . . . . . . . . . . . . . . . . . . . Recycling Unit Hacks 2 | . . . . . . . . . . . 1 . . . . . . . . . . . . . . . . . . 1 . . Report Inventory 1 | . . . . . . . . . . . . . . . . . . . . . . . . . . . . . . 1 . . Retrieve Matter 1 | . . . . . . . . . . . 1 . . . . . . . . . . . . . . . . . . . . . Scanalyzer 25 | . . . . . . . . . . . 1 . . . . . . . . . . . . . . . . . 2 . 18 4 Insert Component 11 | . . . . . . . . . . . 1 . . . . . . . . . . . . . . . . . 1 . 8 1 Analyze 14 | . . . . . . . . . . . . . . . . . . . . . . . . . . . . . 1 . 10 3 Garrison Access Hacks 2 | . . . . . . . . . . . . . . . . . . . . . . . . . . . . 1 1 . . . Seal Access 2 | . . . . . . . . . . . . . . . . . . . . . . . . . . . . 1 1 . . . Unauthorized Hacks 65 | . 3 . 1 . . . 1 2 3 . 9 . . . . . . 4 . . . . 3 8 . . 4 1 8 5 6 7 Terminals 46 | . 2 . 1 . . . 1 2 3 . 3 . . . . . . 3 . . . . 1 7 . . 4 1 6 2 5 5 Track 7 | . . . . . . . . . 1 . . . . . . . . . . . . . . . . . . . 2 . 2 2 Assimilate 2 | . . . . . . . . . . . 1 . . . . . . . . . . . . . . . . . . . . 1 Botnet 22 | . 2 . 1 . . . 1 2 2 . 1 . . . . . . . . . . . . 2 . . 1 1 3 2 2 2 Operators 3 | . . . . . . . . . . . 1 . . . . . . . . . . . . . . . . . 1 . 1 . Skim 9 | . . . . . . . . . . . . . . . . . . 3 . . . . 1 5 . . . . . . . . Sabotage 3 | . . . . . . . . . . . . . . . . . . . . . . . . . . . 3 . . . . . Fabricators 3 | . . . . . . . . . . . . . . . . . . 1 . . . . . . . . . . 1 1 . . Prioritize 1 | . . . . . . . . . . . . . . . . . . . . . . . . . . . . . 1 . . . Haulers 2 | . . . . . . . . . . . . . . . . . . 1 . . . . . . . . . . . 1 . . Repair Stations . | . . . . . . . . . . . . . . . . . . . . . . . . . . . . . . . . . Recycling Units 14 | . 1 . . . . . . . . . 6 . . . . . . . . . . . 2 1 . . . . . 2 . 2 Recyclers 1 | . . . . . . . . . . . 1 . . . . . . . . . . . . . . . . . . . . . Tunnel 1 | . 1 . . . . . . . . . . . . . . . . . . . . . . . . . . . . . . . Fedlink 12 | . . . . . . . . . . . 5 . . . . . . . . . . . 2 1 . . . . . 2 . 2 Scanalyzers 2 | . . . . . . . . . . . . . . . . . . . . . . . . . . . . . 1 . 1 . Researchers 2 | . . . . . . . . . . . . . . . . . . . . . . . . . . . . . 1 . 1 . Garrison Access . | . . . . . . . . . . . . . . . . . . . . . . . . . . . . . . . . . Data Cores Recovered 1 | . . . . . . . . . . . . . . . . . . . . . . . . . . . 1 . . . . . Used . | . . . . . . . . . . . . . . . . . . . . . . . . . . . . . . . . . Hacking Detections 112 | . 6 . 8 . . . 4 6 4 . 11 . . . . . . 14 . . . . 5 6 1 . 5 5 12 3 9 13 Full Trace Events 11 | . . . 1 . . . . 1 . . 2 . . . . . . 1 . . . . 1 . . . . 1 2 1 . 1 Feedback Events 1 | . . . . . . . . 1 . . . . . . . . . . . . . . . . . . . . . . . . Corruption 1 | . . . . . . . . 1 . . . . . . . . . . . . . . . . . . . . . . . . Feedback Blocked . | . . . . . . . . . . . . . . . . . . . . . . . . . . . . . . . . . Robot Schematics Acquired 11 | . . . . . . . . . 1 . . . . . . 4 . . . . . . . . . . . . 6 . . . Robots Built 3 | . . . . . . . . . . . . . . . . . . . . . . . . . . . . . 3 . . . Authchips . | . . . . . . . . . . . . . . . . . . . . . . . . . . . . . . . . . Time 143 | . . . . . . . . . . . . . . . . . . . . . . . . . . . . . 143 . . . Total Robot Build Rating 13 | . . . . . . . . . . . . . . . . . . . . . . . . . . . . . 13 . . . Part Schematics Acquired 39 | . . . . . . . . . 1 . . . . . . 11 . . . . 4 . . . . . . . 15 . 7 1 Parts Built 5 | . . . . . . . . . . . 2 . . . . . . 3 . . . . . . . . . . . . . . Authchips . | . . . . . . . . . . . . . . . . . . . . . . . . . . . . . . . . . Time 222 | . . . . . . . . . . . 47 . . . . . . 175 . . . . . . . . . . . . . . Total Part Build Rating 31 | . . . . . . . . . . . 10 . . . . . . 21 . . . . . . . . . . . . . . Parts Repaired 3 | . 1 . . . . . 1 1 . . . . . . . . . . . . . . . . . . . . . . . . Time 83 | . 26 . . . . . 19 38 . . . . . . . . . . . . . . . . . . . . . . . . Parts Recycled . | . . . . . . . . . . . . . . . . . . . . . . . . . . . . . . . . . Recycled Matter . | . . . . . . . . . . . . . . . . . . . . . . . . . . . . . . . . . Retrieved Matter . | . . . . . . . . . . . . . . . . . . . . . . . . . . . . . . . . . Retrieved Components . | . . . . . . . . . . . . . . . . . . . . . . . . . . . . . . . . . Parts Scanalyzed 8 | . . . . . . . . . . . 1 . . . . . . . . . . . . . . . . . 1 . 5 1 Part Schematics Acquired 7 | . . . . . . . . . . . . . . . . . . . . . . . . . . . . . 1 . 5 1 Parts Damaged 2 | . . . . . . . . . . . . . . . . . . . . . . . . . . . . . . . 2 . Bothacking | -11 -10 -10 -9 -9 -9 -8 -8 -8 -8 -8 -6 -6 -6 -6 -6 -6 -5 -5 -5 -5 -5 -4 -4 -4 -4 -4 -4 -3 -3 -2 -2 -2 ------------ Run | Yrd Mat Min Mat Min Exi Min Mat Sto Rec Scr Fac Was Fac Low Low Dat Pro Fac Upp Upp Zhi Pro Fac Ext Cet Arc Hub Res Tes Res Qua Frg Used RIF Installer . | . . . . . . . . . . . . . . . . . . . . . . . . . . . . . . . . . Robots Hacked 6 | . . . . . . . . . . . . . . . . . . . . . . . . . . . . . 5 . 1 . Non-combat . | . . . . . . . . . . . . . . . . . . . . . . . . . . . . . . . . . Combat . | . . . . . . . . . . . . . . . . . . . . . . . . . . . . . . . . . Robot Hacks Applied . | . . . . . . . . . . . . . . . . . . . . . . . . . . . . . . . . . Manual 6 | . . . . . . . . . . . . . . . . . . . . . . . . . . . . . 5 . 1 . Relay Couplers Released 7 | . . . . . . . . . . . 4 . . . . . . . . . . . . . . . . . . . . 3 Programmers 7 | . . . . . . . . . . . 4 . . . . . . . . . . . . . . . . . . . . 3 Fabnet Peak Effective % . | . . . . . . . . . . . . . . . . . . . . . . . . . . . . . . . . . Robots Rewired 17 | . . . . . . . . . . . . . . . . . . . . . . . 1 10 . . 1 1 1 2 . 1 Allies Hacked 3 | . . . . . . . . . . . . . . . . . . . . . . . . . . . . . 3 . . . Hacks Repelled . | . . . . . . . . . . . . . . . . . . . . . . . . . . . . . . . . . Allies | -11 -10 -10 -9 -9 -9 -8 -8 -8 -8 -8 -6 -6 -6 -6 -6 -6 -5 -5 -5 -5 -5 -4 -4 -4 -4 -4 -4 -3 -3 -2 -2 -2 -------- Run | Yrd Mat Min Mat Min Exi Min Mat Sto Rec Scr Fac Was Fac Low Low Dat Pro Fac Upp Upp Zhi Pro Fac Ext Cet Arc Hub Res Tes Res Qua Frg Total Allies 33 | . . . . . . . . . . . 1 . . . . . . . . . . . 1 17 5 . 1 1 4 2 . 1 Largest Group 10 | . . . . . . . . . . . 1 . . . . . . . . . . . 1 8 10 10 8 1 3 1 . 1 Highest-Rated Group 772 | . . . . . . . . . . . 10 . . . . . . . . . . . 49 338 772 772 584 87 128 64 . 53 Highest-Rated Ally 159 | . . . . . . . . . . . 10 . . . . . . . . . . . 49 159 159 159 96 87 64 64 . 53 Total Orders 19 | . . . . . . . . . . . 2 . . . . . 1 4 . . . . . . . . 6 . 4 2 . . STAY 6 | . . . . . . . . . . . . . . . . . . . . . . . . . . . 4 . 2 . . . FOLLOW 4 | . . . . . . . . . . . . . . . . . . . . . . . . . . . 2 . 2 . . . EXPLORE 6 | . . . . . . . . . . . 1 . . . . . . 3 . . . . . . . . . . . 2 . . RETURN 3 | . . . . . . . . . . . 1 . . . . . 1 1 . . . . . . . . . . . . . . Ally Attacks 246 | . . . . . . . . . . . . . . . . . . . . . . . . 94 10 23 93 . 14 10 . 2 Total Damage 8744 | . . . . . . . . . . . . . . . . . . . . . . . . 2991 673 925 3371 . 218 521 . 45 Kills 41 | . . . . . . . . . . . . . . . . . . . . . . . . 13 3 4 19 . . 2 . . Allies Corrupted 1 | . . . . . . . . . . . . . . . . . . . . . . . . . . . . . 1 . . . Allies Melted 4 | . . . . . . . . . . 1 . . . . . . . . . . . . . 1 . . . . . . . 2 Intel | -11 -10 -10 -9 -9 -9 -8 -8 -8 -8 -8 -6 -6 -6 -6 -6 -6 -5 -5 -5 -5 -5 -4 -4 -4 -4 -4 -4 -3 -3 -2 -2 -2 ------- Run | Yrd Mat Min Mat Min Exi Min Mat Sto Rec Scr Fac Was Fac Low Low Dat Pro Fac Upp Upp Zhi Pro Fac Ext Cet Arc Hub Res Tes Res Qua Frg Active Infowar (turns) 27692 | . . . 136 . . . 679 365 . . 2228 237 424 1048 687 118 678 1850 366 697 244 372 2764 1433 296 296 1058 1585 2868 2188 1558 3517 Optics 27458 | . . . . . . . 679 365 . . 2228 237 424 1048 687 118 678 1850 366 697 244 372 2764 1433 296 198 1058 1585 2868 2188 1558 3517 Sensors 2378 | . . . . . . . . . . . 110 . . . . . . . . . . . 664 1278 186 89 51 . . . . . IFF 8303 | . . . . . . . . . . . 988 237 362 1048 687 118 668 1194 366 569 241 258 1567 . . . . . . . . . Seismic 2767 | . . . . . . . . . . . 1869 230 311 74 . . . . . . . . . . . . . 283 . . . . Machine Analysis 136 | . . . 136 . . . . . . . . . . . . . . . . . . . . . . . . . . . . . Triangulation 6090 | . . . . . . . . . . . . . . . . . . 1705 366 697 243 357 726 140 . . . 453 1403 . . . Jamming 13886 | . . . . . . . . . . . . . . . . . . . . . . . 476 1433 121 296 967 1585 2868 2188 1558 2394 ECM 2 | . . . . . . . . . . . . . . . . . . . . . . . . . . . . . 1 . 1 . Robot Analysis Total 12 | . 4 . 1 . . . . 1 1 . . . . . . . . . . . 4 . . 1 . . . . . . . . Derelict Logs Recovered 10 | . . 1 . 1 . . . . . . . . . 3 1 . . . 2 1 . 1 . . . . . . . . . . Drone Launches 8 | . . . . . . . . . . . 1 . . . . . 2 3 . . . . . . . . . . . 2 . . Drone Recoveries 5 | . . . . . . . . . . . 1 . . . . . 2 1 . . . . . . . . . . . 1 . . Exploration | -11 -10 -10 -9 -9 -9 -8 -8 -8 -8 -8 -6 -6 -6 -6 -6 -6 -5 -5 -5 -5 -5 -4 -4 -4 -4 -4 -4 -3 -3 -2 -2 -2 ------------- Run | Yrd Mat Min Mat Min Exi Min Mat Sto Rec Scr Fac Was Fac Low Low Dat Pro Fac Upp Upp Zhi Pro Fac Ext Cet Arc Hub Res Tes Res Qua Frg Turns Passed 35422 | 43 886 531 1129 388 477 361 901 1210 579 2404 2229 237 424 1048 687 118 678 1850 366 697 244 372 2764 1433 296 296 1058 1585 2868 2188 1558 3517 Spaces Moved 19588 | 36 612 455 650 232 319 178 417 493 321 1930 1209 128 163 629 520 89 426 1044 277 489 172 242 1305 741 112 165 544 746 1339 1143 833 1629 Core 4 | 4 . . . . . . . . . . . . . . . . . . . . . . . . . . . . . . . . Treads 624 | . . . . . . . . . . . . . 46 553 . . . . . . . . . . . . . 1 . . . 24 Legs 722 | . . . . . . . . . . . . . . . . . . . . . 70 242 410 . . . . . . . . . Wheels 18238 | 32 612 455 650 232 319 178 417 493 321 1930 1209 128 117 76 520 89 426 1044 277 489 102 . 895 741 112 165 544 745 1339 1143 833 1605 Hover . | . . . . . . . . . . . . . . . . . . . . . . . . . . . . . . . . . Flight . | . . . . . . . . . . . . . . . . . . . . . . . . . . . . . . . . . Fastest Speed 50 | 50 95 110 110 150 150 150 165 140 150 115 115 115 130 130 130 130 130 125 125 125 120 120 145 123 135 135 135 130 130 130 150 110 Average Speed 139 | 85 105 110 137 150 150 162 165 164 163 118 129 119 140 156 130 130 130 137 125 125 123 121 159 140 136 135 146 144 149 139 150 149 Slowest Speed 250 | 95 125 110 165 165 150 165 165 170 165 170 130 130 240 160 130 130 130 195 125 125 160 190 190 145 150 150 155 250 150 150 150 210 Overloaded Moves . | . . . . . . . . . . . . . . . . . . . . . . . . . . . . . . . . . Propulsion Burnouts . | . . . . . . . . . . . . . . . . . . . . . . . . . . . . . . . . . Robots Hopped . | . . . . . . . . . . . . . . . . . . . . . . . . . . . . . . . . . Potential Cave-ins 2 | . . . . . . . . . . . . . . . . . 2 . . . . . . . . . . . . . . . Cave-ins Triggered . | . . . . . . . . . . . . . . . . . . . . . . . . . . . . . . . . . Teleports 1 | . . . . . . . . . . . . . . . . . . . . . . . . . . . . . . . . 1 Exploration Rate (%) 58 | 3 77 81 61 68 76 44 34 62 56 93 31 79 6 80 79 74 55 26 45 77 62 41 26 90 68 92 54 25 92 34 86 60 Regions Visited 32 Branch Regions 22 Pre-discovered Areas 12 | . 1 1 . 2 1 . . . . . 1 . . 2 . 1 . . . . 3 . . . . . . . . . . . Known Exits Taken 9 | . . . 1 . . . 1 1 . . . . 1 . . . 1 1 . . . . 1 . . . . 1 . 1 . . Unknown Exits Taken 21 | 1 1 1 . 1 1 1 . . 1 1 . . . 1 1 1 . . 1 1 1 1 . 1 1 1 1 . 1 . 1 . Scrap Searched 16 | . . 1 . 1 . 3 . . . 3 . . . 1 . . 5 . . 2 . . . . . . . . . . . . Spaces Dug 458 | . 12 5 1 . . . . . 2 . 21 2 17 . . . 44 20 8 9 . . 42 4 . . 12 36 24 27 26 146 Terrain Destroyed 1111 | . 76 8 15 31 . . 22 1 2 60 55 5 69 . . . 45 39 8 13 . . 73 68 8 . 12 36 30 27 27 381 Melee 238 | . 2 . 1 . . . . . 2 . 19 . 5 . . . 7 17 3 3 . . 30 4 . . 9 35 20 24 19 38 Projectile 106 | . . . . . . . . 1 . . 13 5 6 . . . 14 8 5 10 . . . 2 . . 3 1 9 3 8 18 AOE 766 | . 74 8 14 31 . . 22 . . 60 23 . 58 . . . 24 14 . . . . 43 62 8 . . . . . . 325 Terrain Rammed . | . . . . . . . . . . . . . . . . . . . . . . . . . . . . . . . . . Walls Destroyed . | . . . . . . . . . . . . . . . . . . . . . . . . . . . . . . . . . Machines Disabled . | . . . . . . . . . . . . . . . . . . . . . . . . . . . . . . . . . Actions | -11 -10 -10 -9 -9 -9 -8 -8 -8 -8 -8 -6 -6 -6 -6 -6 -6 -5 -5 -5 -5 -5 -4 -4 -4 -4 -4 -4 -3 -3 -2 -2 -2 --------- Run | Yrd Mat Min Mat Min Exi Min Mat Sto Rec Scr Fac Was Fac Low Low Dat Pro Fac Upp Upp Zhi Pro Fac Ext Cet Arc Hub Res Tes Res Qua Frg Total 25743 | 45 777 471 810 265 318 217 556 749 364 2018 1714 192 290 669 531 92 516 1364 289 548 202 299 1828 1059 248 219 757 1178 2027 1602 1092 2437 Wait 2699 | . 89 3 28 16 . 4 61 105 28 7 289 47 58 12 10 . 55 84 1 12 . 1 242 57 115 28 93 235 383 251 117 268 Move 19557 | 35 611 454 649 231 318 177 416 492 320 1929 1209 127 162 628 519 88 425 1043 276 488 171 241 1304 740 111 164 543 745 1338 1142 832 1629 Hop . | . . . . . . . . . . . . . . . . . . . . . . . . . . . . . . . . . Pick Up 228 | 4 13 2 19 3 . 2 6 10 1 10 36 1 3 . 2 . 1 22 1 2 3 7 9 10 3 1 4 15 4 9 7 18 Fast Attach 282 | 6 2 . 6 . . 3 4 19 . 13 11 1 3 3 . 1 1 15 . 2 8 1 24 17 2 6 12 17 42 25 12 26 Attach 154 | . 1 . 4 1 . 2 5 4 . 9 7 1 5 1 . 1 1 19 . 1 3 7 14 8 . 1 6 9 4 5 2 33 Detach 143 | . 1 . 3 . . 2 2 6 2 10 12 1 2 3 . 1 1 9 . 1 2 4 19 8 . 1 7 5 5 11 1 24 Swap 323 | . 14 4 20 4 . 6 9 17 1 7 20 1 14 1 . . 6 22 . 6 1 6 32 10 4 2 15 20 16 18 10 37 Drop 385 | . 4 1 28 3 . 4 10 21 3 14 26 1 3 3 . 1 1 26 . 2 11 3 25 12 7 3 16 30 48 26 21 32 Fire 783 | . 35 7 52 7 . 16 43 75 5 17 35 12 13 1 . . 16 57 6 24 . 20 39 14 6 2 8 8 56 14 17 178 Melee 911 | . 7 . 1 . . . . . 3 2 69 . 26 17 . . 9 67 5 10 3 9 112 34 . 11 44 90 112 90 73 117 Ram . | . . . . . . . . . . . . . . . . . . . . . . . . . . . . . . . . . Kick . | . . . . . . . . . . . . . . . . . . . . . . . . . . . . . . . . . Crush . | . . . . . . . . . . . . . . . . . . . . . . . . . . . . . . . . . Escape Stasis 61 | . . . . . . . . . . . . . . . . . . . . . . . . 8 . . . . . 8 . 45 Rewire 186 | . . . . . . 1 . . 1 . . . 1 . . . . . . . . . 8 141 . . 9 4 18 3 . . Trap . | . . . . . . . . . . . . . . . . . . . . . . . . . . . . . . . . . Miscellaneous 31 | . . . . . . . . . . . . . . . . . . . . . . . . . . . . . 1 . . 30 Route ------- -11/Scrapyard -10/Materials (discovered 3 exits: *Mat / [*Min] / [*Sub]) -10/Mines -9/Materials (discovered 2 exits: *Mat / *Min) -9/Mines -9/Exiles (discovered 2 exits: [*Min x2]) -8/Mines -8/Materials -8/Storage (discovered 2 exits: [*Fac] / *Rec) -8/Recycling -8/Scraptown (discovered 2 exits: *Fac x2) -6/Factory (discovered 3 exits: *Fac / Low x2) -6/Waste -6/Factory -6/Lower Caves -6/Lower Caves (discovered 2 exits: *Fac / *Dat) -6/Data Miner -5/Proximity Caves -5/Factory (discovered 2 exits: *Upp x2) -5/Upper Caves -5/Upper Caves -5/Zhirov -4/Proximity Caves -4/Factory (discovered 3 exits: *Res / *Ext x2) -4/Extension (discovered 2 exits: *Res / *Cet) -4/Cetus -4/Archives (discovered 3 exits: *Res / *Hub x2) -4/Hub_04(d) (discovered 2 exits: *Res x2) -3/Research (discovered 3 exits: Arm / *Tes x2) -3/Testing -2/Research (discovered 3 exits: [*Acc] / *Qua x2) -2/Quarantine (discovered 3 exits: [*Acc] / [*Sec] / *Frg) -2/Protoforge (discovered 1 exit: [*Acc]) History --------- Turn | Location | Event 29 | -11/Scrapyard | Discovered new exit (range 15) 44 | -11/Scrapyard | Entered Materials 120 | -10/Materials | Discovered new exit (range 7) 345 | -10/Materials | Build established: Mutant 445 | -10/Materials | Discovered new exit (range 15) 673 | -10/Materials | Discovered new exit (range 9) 852 | -10/Materials | Repaired Grenade Launcher 930 | -10/Materials | Entered Mines 1110 | -10/Mines | A weapon hastily lodged in a ceiling crevice suddenly fell to the ground 1285 | -10/Mines | Learned location of Zion (-7) 1341 | -10/Mines | Discovered new exit (range 15) 1461 | -10/Mines | System corruption reached 10% 1461 | -10/Mines | Entered Materials 1461 | -9/Materials | Evolved 2 slots: Utility x1, Weapon x1 2012 | -9/Materials | Build established: Tank 2128 | -9/Materials | Destroyed 7 combat bots 2188 | -9/Materials | Identified exit to Mines 2469 | -9/Materials | Discovered new exit (range 6) 2491 | -9/Materials | Central database locked down 2590 | -9/Materials | Entered Mines 2591 | -9/Mines | Assembled infested the area 2591 | -9/Mines | Learned location of Storage (-8) 2669 | -9/Mines | Destroyed 7 combat bots 2726 | -9/Mines | Learned location of Recycling (-8) 2763 | -9/Mines | Received a Rocket Launcher from a helpful Derelict 2927 | -9/Mines | Deemed a non-threat by the Exiles lab entrance 2945 | -9/Mines | Found a damaged Exp. Sensor Array with a note attached 2953 | -9/Mines | Found Prototype Device 2972 | -9/Mines | Discovered new exit (range 5) 2978 | -9/Mines | Entered Exiles 3002 | -9/Exiles | Discovered new exit (range 15) 3019 | -9/Exiles | Met 8R-AWN 3040 | -9/Exiles | Met EX-HEX 3100 | -9/Exiles | Met EX-DEC 3168 | -9/Exiles | Visited The Gauntlet 3275 | -9/Exiles | Met EX-BIN 3437 | -9/Exiles | Discovered new exit (range 14) 3455 | -9/Exiles | Entered Mines 3798 | -8/Mines | Discovered new exit (range 10) 3816 | -8/Mines | Entered Materials 3816 | -8/Materials | Evolved 2 slots: Propulsion x1, Utility x1 4349 | -8/Materials | Build established: Gunner 4456 | -8/Materials | Repaired Nuclear Core 4642 | -8/Materials | Discovered new exit (range 13) 4671 | -8/Materials | Garrison activated, responded to threat 4700 | -8/Materials | Identified exit to Storage 4717 | -8/Materials | Entered Storage 4971 | -8/Storage | Repaired Minigun 5150 | -8/Storage | Found Prototype Launcher 5150 | -8/Storage | Identified Gui. Missile Launcher 5361 | -8/Storage | Discovered new exit (range 8) 5715 | -8/Storage | Identified exit to Recycling 5898 | -8/Storage | Build established: Scavenger-Tank 5920 | -8/Storage | Used back door to open Recycling access 5927 | -8/Storage | Entered Recycling 5928 | -8/Recycling | Met a Zionite searching for Scraptown 6443 | -8/Recycling | Scanned before Scraplab entrance 6467 | -8/Recycling | Entered Scraplab 6479 | -8/Recycling | Discovered new exit (range 4) 6506 | -8/Recycling | Entered Scraptown 6506 | -8/Scraptown | System corruption cleaned by C-Scrubber 6858 | -8/Scraptown | Visited The Evicted 6903 | -8/Scraptown | Visited Comm Corps 6948 | -8/Scraptown | Visited Assassins FH 6998 | -8/Scraptown | Visited UFD Registry 7006 | -8/Scraptown | Visited Artisan Demo Area 7064 | -8/Scraptown | Visited Awakened 7118 | -8/Scraptown | Visited Spacefarers 7130 | -8/Scraptown | Build established: Scavenger-Gunner 7258 | -8/Scraptown | Discovered new exit (range 5) 7513 | -8/Scraptown | Heard Great Nut preacher, LISTEN AND RECITE! 7614 | -8/Scraptown | Registered with UFD as "Roughhacker" 7658 | -8/Scraptown | Visited Cartography Club 7707 | -8/Scraptown | Found Surveybot 17 Chip 7843 | -8/Scraptown | Visited Scrapoid Pod Storage 7849 | -8/Scraptown | Found Scrapoid Pod 7872 | -8/Scraptown | Visited Sword Containment 7963 | -8/Scraptown | Discovered new exit (range 5) 7993 | -8/Scraptown | Found Scrap Suit 8002 | -8/Scraptown | Found Scrap Suit 8071 | -8/Scraptown | Visited Science Guys 8139 | -8/Scraptown | Visited Research Penetration Think Tank 8163 | -8/Scraptown | Visited Abandonware Association 8174 | -8/Scraptown | Build established: Scavenger-Mutant 8183 | -8/Scraptown | Learned abandonware demo "KABOOM.EXE" 8183 | -8/Scraptown | Learned abandonware demo "POISON.EXE" 8218 | -8/Scraptown | Visited Scrapoid Research Area 8475 | -8/Scraptown | Visited Infowarlord's Domain 8484 | -8/Scraptown | Found Spectral Analyzer 8505 | -8/Scraptown | Visited Junk Repository 8536 | -8/Scraptown | Visited Botcube Research 8551 | -8/Scraptown | Found Botcube 8644 | -8/Scraptown | Met Optimus 8644 | -8/Scraptown | Accepted into 0bPrime 8740 | -8/Scraptown | Civil war broke out across Scraptown 8850 | -8/Scraptown | Destroyed 7 combat bots 8854 | -8/Scraptown | Core integrity fell below 50% 8866 | -8/Scraptown | Lost 14 allies 8887 | -8/Scraptown | Lost 7 parts (3p2n2u) 8910 | -8/Scraptown | Entered Factory 8910 | -6/Factory | Evolved 4 slots: Propulsion x1, Utility x3 9275 | -6/Factory | Build established: Mutant 9292 | -6/Factory | Loaded intel: 8 recycling unit locations 9335 | -6/Factory | Learned location of Protoforge (-2) 10149 | -6/Factory | Discovered new exit (range 3) 10178 | -6/Factory | Fabricated Triangulator (x2) 10562 | -6/Factory | Identified exit to Factory 10638 | -6/Factory | Identified exit to Lower Caves 11139 | -6/Factory | Sucked down chute 11139 | -6/Factory | Entered Waste 11154 | -6/Waste | Spotted C-40 Crusher 11172 | -6/Waste | Spotted C-40 Crusher 11190 | -6/Waste | Spotted C-40 Crusher 11275 | -6/Waste | Spotted C-40 Crusher 11285 | -6/Waste | Spotted C-40 Crusher 11348 | -6/Waste | Spotted C-40 Crusher 11366 | -6/Waste | Discovered new exit (range 10) 11376 | -6/Waste | Entered Factory 11688 | -6/Factory | Lost 3 parts (2n1w) 11791 | -6/Factory | Discovered exit to Lower Caves (range 6) 11800 | -6/Factory | Entered Lower Caves 12270 | -6/Lower Caves | Build established: Scavenger-Mutant 12741 | -6/Lower Caves | Discovered new exit (range 3) 12848 | -6/Lower Caves | Entered another Lower Caves area 12849 | -6/Lower Caves | Discovered exit to Factory (range 6) 12895 | -6/Lower Caves | Encountered a Warlord checkpoint 13055 | -6/Lower Caves | Build established: Mutant 13215 | -6/Lower Caves | Learned 8 Factory zone layouts 13452 | -6/Lower Caves | Discovered new exit (range 13) 13535 | -6/Lower Caves | Entered Data Miner 13537 | -6/Data Miner | Discovered new exit (range 6) 13551 | -6/Data Miner | Met Data Miner 13583 | -6/Data Miner | Learned location of Section 7 (-2) 13583 | -6/Data Miner | Acquired the access code to Warlord's prototype stash 13605 | -6/Data Miner | Received God Mode back door access code from Data Miner 13653 | -6/Data Miner | Entered Proximity Caves 14038 | -5/Proximity Caves | Spotted B-75 Beast 14317 | -5/Proximity Caves | Discovered exit to Factory (range 4) 14331 | -5/Proximity Caves | Entered Factory 14331 | -5/Factory | Evolved 2 slots: Utility x2 14332 | -5/Factory | Forged Quantum Companion 14435 | -5/Factory | Discovered new exit (range 51) 14648 | -5/Factory | Incoming investigation squad redirected 14666 | -5/Factory | Identified exit to Upper Caves 14741 | -5/Factory | Fabricated Hvy. Siege Treads? 14877 | -5/Factory | Fabricated Quantum Capacitor? 14927 | -5/Factory | Assembled infested ambush trap array 14940 | -5/Factory | System corruption reached 10% 14978 | -5/Factory | Lost 4 parts (1p3u) 14990 | -5/Factory | Destroyed 12 combat bots 15234 | -5/Factory | Allied Derelicts emerged from ambush trap array 15632 | -5/Factory | Spotted B-75 Beast 15676 | -5/Factory | Lost 3 allies 15985 | -5/Factory | Lost 3 parts (2u1w) 16181 | -5/Factory | Entered Upper Caves 16309 | -5/Upper Caves | Learned Factory stockpile data 16447 | -5/Upper Caves | Learned Factory security intel 16466 | -5/Upper Caves | Acquired the password to a Derelict Tinkerer's latest research 16475 | -5/Upper Caves | Found Prototype Special Weapon 16527 | -5/Upper Caves | Discovered new exit (range 16) 16547 | -5/Upper Caves | Entered another Upper Caves area 16824 | -5/Upper Caves | Attracted the attention of an 0b10 checkpoint 17153 | -5/Upper Caves | Discovered new exit (range 21) 17244 | -5/Upper Caves | Entered Zhirov 17247 | -5/Zhirov | Discovered new exit (range 3) 17269 | -5/Zhirov | Met Zhirov 17293 | -5/Zhirov | Learned location of Quarantine (-2) 17293 | -5/Zhirov | Learned location of Command (-1) 17304 | -5/Zhirov | Zhirov requested help retrieving the SGEMP Prototype 17338 | -5/Zhirov | Found Alien Artifact 17338 | -5/Zhirov | Identified Integrated Reactor 17338 | -5/Zhirov | Installed Integrated Reactor, increased core energy generation (+10) 17356 | -5/Zhirov | Found Alien Artifact 17360 | -5/Zhirov | Identified Molecular Deconstructor 17488 | -5/Zhirov | Entered Proximity Caves 17596 | -4/Proximity Caves | Found Imp. Powered Armor 17818 | -4/Proximity Caves | Learned Research trap positions 17853 | -4/Proximity Caves | Discovered new exit (range 7) 17860 | -4/Proximity Caves | Entered Factory 17860 | -4/Factory | Evolved 2 slots: Power x1, Utility x1 17861 | -4/Factory | Identified exit to Extension 17880 | -4/Factory | Loaded intel: 8 recycling unit locations 18641 | -4/Factory | Build established: Gladiator 19366 | -4/Factory | Discovered new exit (range 6) 19540 | -4/Factory | Spotted B-86 Titan 19580 | -4/Factory | Lost 3 parts (3u) 19741 | -4/Factory | Discovered exit to Extension (range 6) 20002 | -4/Factory | Spotted B-86 Titan 20360 | -4/Factory | First assault squad dispatched 20376 | -4/Factory | Incoming assault squad redirected 20624 | -4/Factory | Entered Extension 20736 | -4/Extension | Lost 3 parts (1p1n1u) 21019 | -4/Extension | Rescued a captive Derelict 21021 | -4/Extension | Rescued a captive Derelict 21091 | -4/Extension | Rescued a captive Derelict 21104 | -4/Extension | Rescued a captive Derelict 21170 | -4/Extension | Build established: Commander-Gladiator 21436 | -4/Extension | Spotted B-86 Titan 21475 | -4/Extension | Spotted B-86 Titan 21477 | -4/Extension | Allies destroyed B-86 Titan 21524 | -4/Extension | Allies destroyed B-86 Titan 21531 | -4/Extension | Lost 3 allies 21552 | -4/Extension | Lost 9 parts (1p2n5u1w) 21664 | -4/Extension | Rescued a captive Derelict 21665 | -4/Extension | Rescued a captive Derelict 21719 | -4/Extension | Loaded intel: 1 recycling unit location 21748 | -4/Extension | Incoming investigation squad redirected 21787 | -4/Extension | Rescued A7 21804 | -4/Extension | Learned Armory repair station intel 21809 | -4/Extension | Build established: Scavenger-Gladiator 21826 | -4/Extension | Lost 3 allies 21884 | -4/Extension | Learned Testing trap positions 21955 | -4/Extension | Learned Factory stockpile data 22018 | -4/Extension | Learned Quarantine scanalyzer intel 22026 | -4/Extension | Discovered new exit (range 10) 22028 | -4/Extension | Discovered new exit (range 6) 22057 | -4/Extension | Entered Cetus 22057 | -4/Cetus | Accompanied by 6 allies (A7) 22062 | -4/Cetus | Acquired a Cetus Manufacturing Module code from A7 22074 | -4/Cetus | Spotted Cetus Guard 22074 | -4/Cetus | Spotted Cetus Guard 22074 | -4/Cetus | Spotted Cetus Guard 22074 | -4/Cetus | Spotted Cetus Guard 22084 | -4/Cetus | Allies destroyed Cetus Guard 22090 | -4/Cetus | Allies destroyed Cetus Guard 22091 | -4/Cetus | Destroyed Cetus Guard 22092 | -4/Cetus | Destroyed Cetus Guard 22170 | -4/Cetus | Started Cetus Manufacturing Module 22184 | -4/Cetus | Escorted A7 to Cetus Mainframe 22190 | -4/Cetus | Discovered new exit (range 24) 22195 | -4/Cetus | Manufactured an Enhanced Grunt 22220 | -4/Cetus | Manufactured an Enhanced Grunt 22245 | -4/Cetus | Manufactured an Enhanced Grunt 22270 | -4/Cetus | Manufactured an Enhanced Grunt 22295 | -4/Cetus | Manufactured an Enhanced Grunt 22353 | -4/Cetus | Entered Archives 22353 | -4/Archives | Accompanied by 10 allies (A7) 22358 | -4/Archives | Received a hacking code to weaken MAIN.C 22378 | -4/Archives | Discovered new exit (range 23) 22387 | -4/Archives | Core integrity fell below 50% 22418 | -4/Archives | Discovered new exit (range 19) 22426 | -4/Archives | Discovered new exit (range 15) 22649 | -4/Archives | Entered Hub_04(d) 22649 | -4/Hub_04(d) | Accompanied by 8 allies 22659 | -4/Hub_04(d) | Discovered new exit (range 24) 22742 | -4/Hub_04(d) | Found Prototype Device 22742 | -4/Hub_04(d) | Identified Exp. Thermal Shield 22754 | -4/Hub_04(d) | Lost 3 allies 22811 | -4/Hub_04(d) | Spotted B-86 Titan 22844 | -4/Hub_04(d) | Allies destroyed B-86 Titan 23069 | -4/Hub_04(d) | Discovered new exit (range 17) 23228 | -4/Hub_04(d) | Network Hub disabled 23249 | -4/Hub_04(d) | Incoming investigation squad redirected 23281 | -4/Hub_04(d) | Found Powered Armor 23317 | -4/Hub_04(d) | Network Hub disabled 23330 | -4/Hub_04(d) | Network Hub disabled 23332 | -4/Hub_04(d) | Spotted Lightning 23333 | -4/Hub_04(d) | Spotted Lightning 23448 | -4/Hub_04(d) | Network Hub disabled 23539 | -4/Hub_04(d) | Spotted Lightning 23550 | -4/Hub_04(d) | Spotted Lightning 23554 | -4/Hub_04(d) | System corruption reached 10% 23597 | -4/Hub_04(d) | Spotted Lightning 23625 | -4/Hub_04(d) | Destroyed Lightning 23635 | -4/Hub_04(d) | Found Prototype Device 23635 | -4/Hub_04(d) | Identified Exp. Phase Shifter 23639 | -4/Hub_04(d) | Found Prototype Energy Cannon 23642 | -4/Hub_04(d) | Destroyed Lightning 23667 | -4/Hub_04(d) | Rewired Lightning 23675 | -4/Hub_04(d) | Found Exp. Phase Shifter 23678 | -4/Hub_04(d) | Found Prototype Processor 23678 | -4/Hub_04(d) | Identified Exp. Targeting Computer 23707 | -4/Hub_04(d) | Entered Research 23707 | -3/Research | Accompanied by 1 ally 23707 | -3/Research | Evolved 2 slots: Utility x1, Weapon x1 23708 | -3/Research | Identified exit to Armory 23708 | -3/Research | Identified EMDS 23709 | -3/Research | Loaded intel: 93 trap records 23789 | -3/Research | Spotted B-86 Titan 23984 | -3/Research | Spotted B-86 Titan 24249 | -3/Research | Identified exit to Testing 24520 | -3/Research | Found Gamma Bomb Array 24797 | -3/Research | Found Prototype Launcher 24922 | -3/Research | Identified Tactical Quantum Warhead 24957 | -3/Research | First assault squad dispatched 24980 | -3/Research | Incoming assault squad redirected 25046 | -3/Research | Found Quantum Capacitor 25292 | -3/Research | Entered Testing 25292 | -3/Testing | Accompanied by 1 ally 25293 | -3/Testing | Loaded intel: 19 trap records 25508 | -3/Testing | Build established: Gladiator 25698 | -3/Testing | Fabricated Y-54 Guardian (x2) 25779 | -3/Testing | Found Prototype Device 25779 | -3/Testing | Identified Exp. Focal Shield 25825 | -3/Testing | Spotted Striker 25826 | -3/Testing | Spotted Striker 26390 | -3/Testing | Discovered new exit (range 12) 26425 | -3/Testing | Found Prototype Energy Gun 26425 | -3/Testing | Identified Hyp. EM Gauss Rifle 26619 | -3/Testing | Build established: Tank 26721 | -3/Testing | Spotted PY-U2G7J7HQ4M 26978 | -3/Testing | Build established: Infiltrator-Tank 27157 | -3/Testing | Found Prototype Protection 27157 | -3/Testing | Identified Centrium Heavy Armor Plating 27282 | -3/Testing | Found Prototype Device 27282 | -3/Testing | Identified 2N-1CE's Frost Array 27404 | -3/Testing | Fabricated A-15 Conveyor (x1) 27555 | -3/Testing | Found Prototype Energy Cannon 27557 | -3/Testing | Identified Imp. Potential Cannon 28160 | -3/Testing | Entered Research 28160 | -2/Research | Evolved 2 slots: Power x1, Propulsion x1 28181 | -2/Research | Loaded intel: 4 recycling unit locations 28287 | -2/Research | Identified exit to Quarantine 28352 | -2/Research | Build established: Tank 28665 | -2/Research | Found Prototype Processor 28665 | -2/Research | Identified Exp. Target Analyzer 28845 | -2/Research | Identified exit to DSF 28887 | -2/Research | Found Prototype Device 28887 | -2/Research | Identified Adv. Kinecellerator 28923 | -2/Research | Allied Derelicts emerged from ambush trap array 29066 | -2/Research | Found Prototype Device 29066 | -2/Research | Identified Exp. EM Disruption Field 29070 | -2/Research | Found Centrium Heavy Armor Plating 29074 | -2/Research | Found Centrium Heavy Armor Plating 29099 | -2/Research | Spotted B-90 Cyclops 29261 | -2/Research | Discovered new exit (range 23) 29534 | -2/Research | Found Exp. Focal Shield 29555 | -2/Research | Spotted B-90 Cyclops 30268 | -2/Research | Found Prototype Device 30268 | -2/Research | Identified Exp. Actuator Array 30348 | -2/Research | Entered Quarantine 30349 | -2/Quarantine | Loaded intel: 3 scanalyzer locations 30414 | -2/Quarantine | Found Alien Artifact 30416 | -2/Quarantine | Identified Subatomic Replicator 30416 | -2/Quarantine | Forged Prototype Slashing Weapon 30598 | -2/Quarantine | Found Alien Reactor 30635 | -2/Quarantine | Identified Matter Drive 31245 | -2/Quarantine | Spotted Alpha 7 31272 | -2/Quarantine | Destroyed Alpha 7 31277 | -2/Quarantine | Found Prototype Device 31277 | -2/Quarantine | Identified Exp. ECM Suite 31300 | -2/Quarantine | Found Alien Launcher 31300 | -2/Quarantine | Identified Sigix Terminator 31471 | -2/Quarantine | Discovered new exit (range 12) 31800 | -2/Quarantine | Spotted Fortress 31899 | -2/Quarantine | Discovered new exit (range 6) 31899 | -2/Quarantine | Discovered new exit (range 7) 31906 | -2/Quarantine | Entered Protoforge 31919 | -2/Protoforge | Spotted Hotshot 31927 | -2/Protoforge | Spotted Hotshot 31931 | -2/Protoforge | Destroyed Hotshot 31938 | -2/Protoforge | Destroyed Hotshot 32081 | -2/Protoforge | Spotted Hotshot 32083 | -2/Protoforge | Spotted Hotshot 32155 | -2/Protoforge | Destroyed Hotshot 32159 | -2/Protoforge | Destroyed Hotshot 32165 | -2/Protoforge | Spotted Overlord 32167 | -2/Protoforge | Superfortress began startup sequence 32177 | -2/Protoforge | Destroyed Overlord 32434 | -2/Protoforge | Spotted B-90 Cyclops 32656 | -2/Protoforge | Build established: Mutant 32718 | -2/Protoforge | Spotted Hotshot 32719 | -2/Protoforge | Spotted Hotshot 32749 | -2/Protoforge | Destroyed Hotshot 32750 | -2/Protoforge | Spotted Immortal 32758 | -2/Protoforge | Spotted Immortal 32763 | -2/Protoforge | Destroyed Immortal 32769 | -2/Protoforge | Destroyed Immortal 32826 | -2/Protoforge | Destroyed Hotshot 32869 | -2/Protoforge | Discovered new exit (range 22) 33003 | -2/Protoforge | System corruption reached 10% 33123 | -2/Protoforge | Spotted Hotshot 33125 | -2/Protoforge | Spotted Hotshot 33138 | -2/Protoforge | Destroyed Hotshot 33142 | -2/Protoforge | Destroyed Hotshot 33297 | -2/Protoforge | Found Prototype Device 33297 | -2/Protoforge | Identified Cep. Weapon Articulator 33311 | -2/Protoforge | Found Prototype Storage 33311 | -2/Protoforge | Identified Cep. NT7 Matterbank 33331 | -2/Protoforge | Found Prototype Device 33331 | -2/Protoforge | Identified Cep. Antimissile System 33335 | -2/Protoforge | Found Cep. Antimissile System 33373 | -2/Protoforge | Build established: Tank 33656 | -2/Protoforge | First assault squad dispatched 33663 | -2/Protoforge | Spotted EXE-6 33674 | -2/Protoforge | Spotted EXE-6 33679 | -2/Protoforge | Incoming assault squad redirected 33684 | -2/Protoforge | Destroyed EXE-6 33696 | -2/Protoforge | Destroyed EXE-6 33769 | -2/Protoforge | Spotted Decapitator 33769 | -2/Protoforge | Spotted Decapitator 33775 | -2/Protoforge | Spotted AP7-3 33959 | -2/Protoforge | Spotted EXE-6 33959 | -2/Protoforge | Spotted EXE-6 34002 | -2/Protoforge | Destroyed EXE-6 34014 | -2/Protoforge | Destroyed EXE-6 34095 | -2/Protoforge | UFD initiated attack on Protoforge 34095 | -2/Protoforge | Loaded intel: 3 recycling unit locations 34131 | -2/Protoforge | Optimus greeted in Protoforge 34169 | -2/Protoforge | Lost 4 allies 34177 | -2/Protoforge | Found UFD Drillbomb 34244 | -2/Protoforge | Spotted AP7-3 34282 | -2/Protoforge | Spotted Striker 34289 | -2/Protoforge | Destroyed AP7-3 34290 | -2/Protoforge | Spotted Striker 34306 | -2/Protoforge | Destroyed B-90 Cyclops 34330 | -2/Protoforge | Spotted Executioner 34336 | -2/Protoforge | Lost 11 allies 34380 | -2/Protoforge | Spotted Executioner 34383 | -2/Protoforge | Destroyed Executioner 34406 | -2/Protoforge | Destroyed 10 combat bots 34418 | -2/Protoforge | Spotted Executioner 34423 | -2/Protoforge | Spotted Executioner 34427 | -2/Protoforge | Destroyed Executioner 34469 | -2/Protoforge | Lost 6 allies 34471 | -2/Protoforge | Spotted Executioner 34472 | -2/Protoforge | Destroyed Executioner 34480 | -2/Protoforge | Installed UFD Drillbomb at designated target 34480 | -2/Protoforge | UFD reported confirmed Drillbomb installation 34488 | -2/Protoforge | Spotted Executioner 34507 | -2/Protoforge | Destroyed Executioner 34564 | -2/Protoforge | Spotted Executioner 34564 | -2/Protoforge | Spotted Executioner 34579 | -2/Protoforge | Destroyed Executioner 34610 | -2/Protoforge | Lost 10 allies 34616 | -2/Protoforge | UFD reported confirmed Drillbomb installation 34626 | -2/Protoforge | Spotted Executioner 34626 | -2/Protoforge | Spotted Executioner 34643 | -2/Protoforge | Destroyed Executioner 34654 | -2/Protoforge | Found UFD Drillbomb 34668 | -2/Protoforge | Lost 7 allies 34736 | -2/Protoforge | Installed UFD Drillbomb at designated target 34736 | -2/Protoforge | UFD reported confirmed Drillbomb installation 34794 | -2/Protoforge | Found UFD Drillbomb 34823 | -2/Protoforge | Spotted Executioner 34824 | -2/Protoforge | Spotted Striker 34829 | -2/Protoforge | Destroyed Striker 34838 | -2/Protoforge | Spotted Striker 34851 | -2/Protoforge | Destroyed Executioner 34889 | -2/Protoforge | Lost 6 allies 34897 | -2/Protoforge | Destroyed 12 combat bots 34897 | -2/Protoforge | Lost 4 parts (1p2u1w) 34898 | -2/Protoforge | Spotted Hotshot 34898 | -2/Protoforge | Spotted Hotshot 34898 | -2/Protoforge | Spotted Hotshot 34898 | -2/Protoforge | Spotted Hotshot 34903 | -2/Protoforge | Destroyed Hotshot 34903 | -2/Protoforge | Destroyed Hotshot 34903 | -2/Protoforge | Destroyed Hotshot 34987 | -2/Protoforge | Spotted Striker 34989 | -2/Protoforge | Spotted Striker 35012 | -2/Protoforge | Destroyed Striker 35017 | -2/Protoforge | Core integrity fell below 50% 35017 | -2/Protoforge | Spotted Decapitator 35018 | -2/Protoforge | Spotted Decapitator 35026 | -2/Protoforge | Destroyed Decapitator 35027 | -2/Protoforge | Destroyed Striker 35029 | -2/Protoforge | Destroyed Decapitator 35048 | -2/Protoforge | Lost 5 allies 35063 | -2/Protoforge | Spotted Striker 35067 | -2/Protoforge | Destroyed 8 combat bots 35071 | -2/Protoforge | Lost 4 parts (2p1u1w) 35077 | -2/Protoforge | Installed UFD Drillbomb at designated target 35077 | -2/Protoforge | UFD reported confirmed Drillbomb installation 35079 | -2/Protoforge | Spotted Executioner 35081 | -2/Protoforge | Spotted Striker 35082 | -2/Protoforge | Destroyed Striker 35082 | -2/Protoforge | Destroyed Executioner 35087 | -2/Protoforge | Spotted Executioner 35101 | -2/Protoforge | Spotted Striker 35121 | -2/Protoforge | Spotted Executioner 35138 | -2/Protoforge | Destroyed Striker 35159 | -2/Protoforge | Core integrity fell below 20% 35168 | -2/Protoforge | Lost 7 parts (1p3n3u) 35183 | -2/Protoforge | Lost 5 allies 35187 | -2/Protoforge | Destroyed Executioner 35223 | -2/Protoforge | Lost 5 parts (1p1n2u1w) 35256 | -2/Protoforge | Found 0bPrime Scrap Suit 35298 | -2/Protoforge | Spotted Executioner 35317 | -2/Protoforge | Identified Transdimensional Reconstructor 35317 | -2/Protoforge | Warped through subspace 35343 | -2/Protoforge | Spotted Immortal 35355 | -2/Protoforge | Spotted Immortal 35392 | -2/Protoforge | Found UFD Drillbomb 35413 | -2/Protoforge | Spotted Executioner 35423 | -2/Protoforge | Destroyed by Executioner with Helical Railgun Last Messages --------------- 35317_ Identified Transdimensional Reconstructor. 35317_ Warped through subspace. 35318_ Acquired 10 matter. 35318_ N-04 Retriever collects Trap Scanner. 35321_ N-04 Retriever collects Mak. Coolant Network. 35321_ N-04 Retriever collects Imp. Deuterium Engine. 35328_ The unstable cave ceiling collapses. 35332_ System corrupted: Energy discharge (-127). 35350_ System corrupted: Matter fused (-8). 35350_ Acquired 6 matter. 35364_ 0bP_NET: Lugger 350 inbound, all units not involved in other operations escort to target. 35366_ System corrupted: Matter fused (-9). 35375_ 0bP_NET: Lugger 643 inbound, all units not involved in other operations escort to target. 35389_ Acquired 11 matter. 35392_ Acquired UFD Drillbomb. 35397_ Acquired Ovr. Medium Treads. 35398_ System corrupted: Heat flow error (+111). 35422_ System corrupted: Component data lost. Map ----- +----------------------------------------------------+ | ??????????????????????????????########## !!!#####! | | ??????????????????????????????## | | ??????????????????????????????## | | ??????????????????????????????## | | ??????????????????????????????## | | #?????????????????????????????## | | #?????????????????????????????## | | #?????????????????????????????## ##### !!##### | | #?????????????????????????????## #####""""#####" | | #?????????????????????????????## ##?########?### | | #?????????????????????????????## ##?########?### | | #?????????????????????????????## ##????????????? | | #?????????????????????????????## ##????????????? | | #?????????????????????????????## ##????????????? | | #################?????????????## ############??? | | #################?????????????## ############??? | | # ##?#########???## # ##??? | | # """" ##?############## # ##??? | | # """" " " #####% ####### + ##??? | | # """ ""R"" ##### # ##??? | | # """"! """" + % % # ##??? | | # ##### E # ##??? | | ########+########### ########### ##??? | | % #######?### C############ ##??? | | ##??????### ###########;###########??? | | """ """ ##???????## #@ ###########??? | | """ """ ##?????#### """ ##???????????? | | """ """ ###?????# ## E# ""T"" ##???????????? | | """ """ ########## # # "" "" ##???????????? | | """ """ ########## # #???????????? | | " """ "" """ ##???????????? | | "" "" # ##???????????? | | % * %!% # # ## ################ | | % ## ############### | | ######+########;;%; % ### | | ??#==%=[ #### ; " # % % ## # | | ??# [""" ""##?# ; " ! # # # | | #[%""" ""##?##; " # & ######## | | " =""" T"##?### ## # # % # | | # ^ ""###### ## # ## ## """ # # "" | | #^ """ ""##### ##### ## """ # + "" | | ?# """ + + # " "" # "" "" | | ?# """ ^ ##### ## # """" # "" "" | | ??# ##### ## " # % # # # # "T "" | | ??############## ## "%" # # ## # # "" "" | | ??######## # ## " # ! #### " " "" "" | | ??######## """ # ## "[ !%" ## " | | ###? ?# """ + ## %#%=% #"" "####+## | | ###? ?# """ # ##"#+###=%[%% " ## ## | | ???? ?# # ## %##%[# "# # " | +----------------------------------------------------+ Best States ------------- Heat Dissipation 149 Coolant Potential 100 Energy Generation 87 Energy Capacity 1340 Matter Stores 300 Matter Capacity 600 Sight Range 24 Robot Scan Range 18 Terrain Scan Density 210 Jamming Range 16 Power Amplification 30 Corruption Block 20 Armor Coverage 1200 Resistance: KI 30 Resistance: TH 30 Propulsion Shielding 66 Utility Shielding 66 Weapon Shielding 90 Melee Speed Boost 40 Phase Shifting 20 Evasion (%) 60 Targeting Accuracy 30 Melee Accuracy 16 Recoil Reduction 4 Particle Charging 20 Offensive Hacking 10 Item Schematics ----------------- Mic. Nuclear Core | -8/Recycling | Hacked Combat Drone Bay | -6/Data Miner | Free Lgt. Regenerative Plating | -6/Data Miner | Free Cld. Nuclear Pulse Thruster | -6/Data Miner | Free Prc. Energy Filter | -6/Data Miner | Free Enh. Coil Gun | -6/Data Miner | Free Hvy. Siege Treads | -6/Data Miner | Free Quantum Capacitor | -6/Data Miner | Free Dispersion Rifle | -6/Data Miner | Free Variable Charge Gun | -6/Data Miner | Free Railgun | -6/Data Miner | Free Impulse Thruster Array | -6/Data Miner | Free Assault Drone Bay | -5/Zhirov | Free Exp. Heat Sink | -5/Zhirov | Free Exp. Optical Array | -5/Zhirov | Free Imp. Arc Thrower | -5/Zhirov | Free Imp. Medium Armor Plating | -3/Testing | Scanalyzed Adv. Micro-nuke Launcher | -3/Testing | Archive Exp. Matter Compressor | -3/Testing | Archive Diametric Drive | -3/Testing | Archive Adv. Dynamic Insulation System | -3/Testing | Archive Exp. Field Recycling Unit | -3/Testing | Archive Cld. Impulse Thruster | -3/Testing | Archive Imp. KE Penetrator | -3/Testing | Archive Hvy. Dispersion Rifle | -3/Testing | Archive Molecular Scythe | -3/Testing | Archive Enh. Fission Core | -3/Testing | Archive Neutron Missile Launcher | -3/Testing | Archive Adv. Variable Charge Gun | -3/Testing | Archive Hvy. Antimatter Reactor | -3/Testing | Archive Hvy. Tesla Rifle | -3/Testing | Archive Imp. Weapon Shielding | -2/Quarantine | Scanalyzed Imp. Utility Shielding | -2/Quarantine | Scanalyzed Centrium Heavy Armor Plating | -2/Quarantine | Scanalyzed Hds. Centrium Wheel | -2/Quarantine | Scanalyzed Centrium Heavy Treads | -2/Quarantine | Scanalyzed Exp. Thermal Shield | -2/Quarantine | Archive Exp. Thermal Defense Suite | -2/Quarantine | Archive Exp. Weapon Shielding | -2/Protoforge | Scanalyzed Robot Schematics ------------------ R-06 Scavenger | -8/Recycling | Hacked A-15 Conveyor | -6/Data Miner | Free Y-54 Guardian | -6/Data Miner | Free B-48 Gladiator | -6/Data Miner | Free L-41 Fighter | -6/Data Miner | Free B-74 Champion | -3/Testing | Archive Y-72 Warden | -3/Testing | Archive B-60 Warrior | -3/Testing | Archive L-61 Swordsman | -3/Testing | Archive G-67 Veteran | -3/Testing | Archive T-07 Excavator | -3/Testing | Archive Fabricated ------------ Triangulator | x2 | -6/Factory | Preloaded Hvy. Siege Treads | x1 | -5/Factory Quantum Capacitor | x2 | -5/Factory | Preloaded Y-54 Guardian | x2 | -3/Testing A-15 Conveyor | x1 | -3/Testing Repaired ---------- Grenade Launcher | 31% | -10/Materials Nuclear Core | 14% | -8/Materials Minigun | 13% | -8/Storage Alien Tech Used ----------------- Integrated Reactor Subatomic Replicator Sigix Terminator Matter Drive Transdimensional Reconstructor Achievements -------------- Assassin Challenges ------------ None Game ------ Seed RainbowGodBeamcaster Manual? 0 Play Time 13:37:07 Cumulative 368.0 hours Start 2025.06.24 @ 23:25:47 End 2025.06.29 @ 00:42:53 Sessions 11 Manual Loads 0 Difficulty Rogue Special Mode None Game No. 187 Rogue 187 Adventurer 0 Explorer 0 Win Type - Total 12 Types 7/0/3/0/0/0/2/0/0/0 Lore% 61 Gallery% 76 Achievement% 79 Wizard Run 0 Options --------- Layout 2 ASCII 0 Keyboard 1 Movement Numpad Keybinds 0 Fullscreen 2 Font 18/SmallcapsGlow Map View 76x59 Zoom Use 96% Tactical HUD 1 Map Filters NONE Filters NONE Steam 1 RUN: 5130486f-9275-4e07-81cc-8431b0d90106